{"text_format":"1","workbook":"xlsx","n_sheets":4,"sheets":["TENDER PACK 1a STORAGE(Sheet A)","DC1A","TENDER PACK 1a STORAGE(Sheet B)","DC1B"],"not_rendered":{"charts":0,"images":4,"macros":1,"external_links":0,"defined_names":1,"comments":2,"pivot_tables":0},"unopened":[],"bounds":{"document_bytes":16777216,"sheet_cells":100000,"rows_first":2000,"rows_last":500,"rows_between":2000,"halvings":0,"cell_chars":16384,"cell_head_chars":4096},"cells_cut":0,"cells_raw":0,"read":"whole","date_system":"1900"}

{"sheet":"TENDER PACK 1a STORAGE(Sheet A)","index":0,"n_rows":226,"n_cols":19,"rows_kept":226,"cut":false,"hidden":false,"merged":[[99,7,99,16],[97,7,98,16],[96,7,96,16],[95,7,95,16],[94,7,94,16],[160,7,161,14],[143,7,144,14],[145,7,146,14],[147,7,150,14],[151,7,152,16],[153,7,154,16],[128,7,131,16],[125,7,127,16],[156,3,156,16],[158,3,158,16],[97,3,98,6],[99,3,99,6],[103,3,106,6],[160,15,161,16],[147,3,150,6],[147,15,150,16],[151,3,152,6],[215,3,216,16],[218,3,218,16],[220,15,221,16],[225,3,225,10],[225,11,225,16],[224,3,224,16],[220,7,221,14],[220,3,221,6],[199,3,200,4],[199,13,200,14],[199,15,200,16],[201,3,202,4],[201,13,202,14],[201,15,202,16],[203,3,204,4],[203,13,204,14],[203,15,204,16],[205,3,206,4],[205,13,206,14],[205,15,206,16],[205,11,206,12],[199,5,200,6],[199,9,200,10],[199,11,200,12],[201,5,202,6],[201,9,202,10],[197,15,198,16],[197,3,198,4],[197,13,198,14],[205,5,206,6],[205,9,206,10],[201,11,202,12],[203,5,204,6],[203,9,204,10],[203,11,204,12],[197,5,198,6],[197,9,198,10],[197,11,198,12],[197,7,198,8],[199,7,200,8],[201,7,202,8],[203,7,204,8],[205,7,206,8],[191,3,192,4],[191,13,192,14],[191,15,192,16],[193,3,194,4],[193,13,194,14],[193,15,194,16],[195,3,196,4],[195,13,196,14],[195,15,196,16],[191,5,192,6],[191,9,192,10],[191,11,192,12],[193,5,194,6],[193,9,194,10],[193,11,194,12],[195,5,196,6],[195,9,196,10],[195,11,196,12],[191,7,192,8],[193,7,194,8],[195,7,196,8],[185,11,186,12],[180,7,184,8],[185,7,186,8],[187,3,188,4],[187,13,188,14],[187,15,188,16],[189,3,190,4],[189,13,190,14],[189,15,190,16],[187,5,188,6],[187,9,188,10],[187,11,188,12],[189,5,190,6],[189,9,190,10],[189,11,190,12],[187,7,188,8],[189,7,190,8],[89,3,89,6],[90,3,92,6],[93,7,93,16],[90,7,92,16],[89,7,89,16],[87,7,88,16],[143,2,144,2],[143,3,144,6],[143,15,144,16],[140,2,141,2],[117,2,118,2],[120,2,121,2],[125,3,127,6],[125,2,127,2],[128,2,131,2],[123,7,124,16],[117,7,119,16],[128,3,131,6],[135,3,136,16],[138,3,138,16],[140,3,142,16],[103,7,106,16],[101,7,102,16],[100,7,100,16],[103,2,106,2],[115,7,116,16],[2,3,6,16],[3,18,5,19],[12,3,13,16],[15,3,21,16],[17,18,20,19],[43,3,47,16],[43,18,45,19],[49,3,61,16],[53,18,55,19],[8,3,10,11],[8,12,10,12],[8,13,10,16],[82,3,83,16],[85,3,85,16],[23,3,23,16],[23,18,24,19],[24,3,24,16],[26,3,38,16],[27,18,29,19],[42,3,42,16],[93,3,93,6],[87,3,88,6],[147,2,150,2],[145,2,146,2],[145,3,146,6],[145,15,146,16],[153,3,154,6],[87,2,88,2],[90,2,92,2],[97,2,98,2],[101,2,102,2],[115,2,116,2],[123,2,124,2],[94,3,94,6],[95,3,95,6],[100,3,100,6],[101,3,102,6],[108,3,108,16],[110,3,111,16],[96,3,96,6],[123,3,124,6],[113,3,113,16],[115,3,116,6],[117,3,119,6],[120,3,122,6],[120,7,122,16],[179,5,179,6],[179,9,179,10],[179,11,179,12],[166,3,167,6],[166,15,167,16],[175,3,176,16],[178,3,178,16],[162,3,163,6],[162,15,163,16],[164,3,165,6],[164,15,165,16],[169,15,171,16],[169,3,171,6],[169,7,171,14],[166,7,167,14],[164,7,165,14],[162,7,163,14],[179,7,179,8],[223,3,223,16],[220,2,221,2],[160,2,161,2],[160,3,161,6],[151,2,152,2],[179,3,179,4],[179,13,179,14],[179,15,179,16],[166,2,167,2],[153,2,154,2],[162,2,163,2],[164,2,165,2],[169,2,170,2],[180,3,184,4],[180,13,184,14],[180,15,184,16],[185,3,186,4],[185,13,186,14],[185,15,186,16],[180,5,184,6],[180,9,184,10],[180,11,184,12],[185,5,186,6],[185,9,186,10]]}
[]
[]
[null,null,null,"TENDER PACK 1A\nOPERATING MARGINS\n2024/25 GAS CAPACITY TENDER (STORAGE - FACILITY OPERATOR)\nSHEET A - MANDATORY 12 MONTH BID"]
[]
[]
[]
[]
[]
[null,null,null,"This tender pack is designed for;\n• Gas Storage Facility Operators\n",null,null,null,null,null,null,null,null,null,"Submission of this sheet is mandatory for Storage Tenderers"]
[]
[]
[]
[null,null,null,"Issued November 2023"]
[]
[]
[null,null,null,"Produced by National Gas Transmission\nNational Gas Transmission plc\nNational Grid House\nWarwick Technology Park\nGallows Hill\nWarwick\nCV34 6DA"]
[]
[]
[]
[]
[]
[]
[]
[null,null,null,"Website:"]
[null,null,null,"https://www.nationalgas.com/uk/gas-transmission/balancing/operating-margins-om"]
[]
[null,null,null,"PLEASE NOTE:\nThis document should be read in conjunction with the template Operating Margins agreements (found on the Operating Margins Homepage) and the document entitled \"Tender Guidance Document 2024/25\".\n\nSpecific guidance on how to complete these tender sheets is provided in Sections 7 & 8 of the Operating Margins Tender Guidance Document with specific cross-references to these tender sheets via superscript numbers adjacent to the relevant fields of information. Please also refer to Section 6 \"Requirements of the Tender Process\" in order to understand what must accompany the tender sheets as part of submission in order that assessment can proceed on any tenders received.\n\nTerms and phrases used in this document have the meanings set out or referred to in the template Operating Margins agreements and/or the Operating Margins Tender Guidance Document."]
[]
[]
[]
[]
[]
[]
[]
[]
[]
[]
[]
[]
[]
[]
[]
[null,null,null,"IMPORTANT INFORMATION - PLEASE READ:"]
[null,null,null,"• All parts of 'Sheet A' must be completed by all Storage Facility Operator tenderers and submitted to be eligible for assessment.\n• A tenderer may submit an additional proposal for a 12 month OM service in the form of 'Sheet B', whereby tranches are split differently. This is optional.\n\n\n**Volumes in Sheets A and B will be treated as mutually exclusive - i.e. National Gas will only consider accepting tranche(s) from ONE of Sheet A or Sheet B.**"]
[]
[]
[]
[]
[]
[null,null,null,"Completed Tenders should be submitted by 13:00 hours (GMT) on Monday 8th January 2024 via Ariba.\n\nThe completed Tender Pack should be uploaded with a filename which includes the company name and site.\nAfter uploading the Tender Pack document, terms and conditions must be accepted before submitting.\nSubmissions can be revised until the deadline."]
[]
[]
[]
[]
[]
[]
[]
[]
[]
[]
[]
[]
[]
[]
[]
[]
[]
[]
[]
[]
[]
[]
[]
[]
[]
[]
[]
[]
[]
[]
[]
[]
[null,null,null,"2024/25 OM GAS CAPACITY TENDER"]
[]
[]
[null,null,null,"Part 1: Tenderer Details"]
[]
[null,null,1,"Tenderer's Company Name\n(including company number)"]
[]
[null,null,2,"Company Representative, Job Title"]
[null,null,3,"Company Representative Address\n(full address including postcode)"]
[]
[]
[null,null,4,"Telephone Number"]
[null,null,5,"Facsimile Number"]
[null,null,6,"Email Address"]
[null,null,7,"Legal Agent Name"]
[null,null,8,"Legal Agent Address"]
[]
[null,null,9,"Shipper Short Code"]
[null,null,10,"Achilles Registration Number"]
[null,null,11,"Type of Credit Security Provided  ",null,null,null,null,null,null,null,null,null,null,null,null,null,null,2]
[]
[]
[]
[]
[]
[]
[null,null,null,"Part 2"]
[]
[null,null,null,"[See OM Tenderers Contract Response Form if such amendments are proposed]\nIf no amendments are proposed please go to Part 3"]
[]
[]
[null,null,null,"Part 3: Facility Details"]
[]
[null,null,12,"Facility Name\n(including company number if different)"]
[]
[null,null,13,"Facility Location\n(full address including postcode)"]
[]
[]
[null,null,null,null,null,null,null,null,null,null,null,null,null,null,null,null,null,null,1]
[]
[]
[]
[]
[null,null,14,"Duration of Service",null,null,null,"12 Months (01/05/2024 - 30/04/2025)"]
[]
[]
[null,null,15,"Service Provider contact details for operational notices \nEmployee Position / role, Address, Telephone numbers, fax and email details."]
[]
[]
[]
[]
[]
[]
[null,null,null,"2024/25 OM GAS CAPACITY TENDER"]
[]
[]
[null,null,null,"Part 4: Deliverability & Availability"]
[]
[null,null,null,"FOR ENTERING STORAGE WITHDRAWAL AND INJECTION  RATES PLEASE SEE 27 AND 28"]
[]
[]
[null,null,16,"Withdrawal Response Time",null,null,null,null,null,null,null,null,null,null,null,"Minutes"]
[]
[null,null,17,"Injection Response Time",null,null,null,null,null,null,null,null,null,null,null,"As defined by tenderer"]
[]
[null,null,18,"Planned Maintenance Periods",null,null,null,null,null,null,null,null,null,null,null,"Dates"]
[]
[]
[]
[null,null,19,"Website for Service Availability / Unavailability"]
[]
[null,null,20,"Allocation Agent                                                                  (Name, Address, Tel No)"]
[]
[]
[null,null,null,"Part 5: Charges & Capacity"]
[]
[null,null,null,"Where charges are to be levied for the provision / use of this service, these must be quantified below"]
[]
[null,null,21,"Injection Charge Rate\n(optional)",null,null,null,null,null,null,null,null,null,null,null,"p/kWh"]
[]
[null,null,22,"Withdrawal Charge Rate\n(optional)",null,null,null,null,null,null,null,null,null,null,null,"p/kWh"]
[]
[null,null,23,"Injection Overrun Charge Rate\n(optional)",null,null,null,null,null,null,null,null,null,null,null,"p/kWh"]
[]
[null,null,24,"Withdrawal Overrun Charge Rate\n(optional)",null,null,null,null,null,null,null,null,null,null,null,"p/kWh"]
[]
[]
[]
[]
[]
[]
[]
[]
[null,null,null,"2024/25 OM GAS CAPACITY TENDER"]
[]
[]
[null,null,null,"Part 5: Charges & Capacity (Continued)"]
[null,null,null,25,null,26,null,27,null,28,null,29,null,30,null,31]
[null,null,null,"Capacity Procurement Tranche Number",null,"Storage Space (in kWh) ",null,"Storage Withdrawal Capacity (in kWh per day) this must be greater than or equal to Storage Space. ",null,"Storage Injection Capacity (in kWh per day)",null,"Annual Service Fee (in pence per kWh per annum)",null,"Annual Service Fee (£)",null,"Tranche may only be accepted in full (YES / NO)"]
[]
[]
[]
[]
[null,null,null,1,null,null,null,null,null,null,null,null,null,{"$f":"(L186*F186)/100","v":0},null,null,null,null,false]
[]
[null,null,null,2,null,null,null,null,null,null,null,null,null,{"$f":"(L188*F188)/100","v":0},null,null,null,null,false]
[]
[null,null,null,3,null,null,null,null,null,null,null,null,null,{"$f":"(L190*F190)/100","v":0},null,null,null,null,false]
[]
[null,null,null,4,null,null,null,null,null,null,null,null,null,{"$f":"(L192*F192)/100","v":0},null,null,null,null,false]
[]
[null,null,null,5,null,null,null,null,null,null,null,null,null,{"$f":"(L194*F194)/100","v":0}]
[]
[null,null,null,6,null,null,null,null,null,null,null,null,null,{"$f":"(L196*F196)/100","v":0},null,null,null,null,false]
[]
[null,null,null,7,null,null,null,null,null,null,null,null,null,{"$f":"(L198*F198)/100","v":0},null,null,null,null,false]
[]
[null,null,null,8,null,null,null,null,null,null,null,null,null,{"$f":"(L200*F200)/100","v":0},null,null,null,null,false]
[]
[null,null,null,9,null,null,null,null,null,null,null,null,null,{"$f":"(L202*F202)/100","v":0},null,null,null,null,false]
[]
[null,null,null,10,null,null,null,null,null,null,null,null,null,{"$f":"(L204*F204)/100","v":0},null,null,null,null,false]
[]
[null,null,null,"Total",null,{"$f":"SUM(F186:G205)","v":0},null,{"$f":"SUM(H186:I205)","v":0},null,{"$f":"SUM(J186:K205)","v":0},null,null,null,{"$f":"SUM(N186:O205)","v":0}]
[]
[]
[]
[]
[]
[]
[]
[]
[]
[null,null,null,"2024/25 OM GAS CAPACITY TENDER\n"]
[]
[]
[null,null,null,"Part 6: Facility Withdrawal Capacity"]
[]
[null,null,32,"Nameplate Facility Withdrawal Rate",null,null,null,null,null,null,null,null,null,null,null,"kWh/h"]
[]
[]
[null,null,33,"Facility Performance Curve"]
[null,null,null,"Please use the below space to describe the deliverability at different stock levels"]
[null,null,null,"Facility Gas In Storage (kWh)",null,null,null,null,null,null,null,"Maximum Facility Withdrawal Rate (kWh/h)"]

{"sheet":"DC1A","index":1,"n_rows":13,"n_cols":37,"rows_kept":13,"cut":false,"hidden":true,"merged":[[0,2,1,9]]}
[null,null,"Data Collection Tab for Contracts Team"]
[]
["Tender Pack","Tender Ref","Tranche Ref","Main Ref","Tenderer's Company Name","Company Representative","Company Representative Address","Telephone Number","Facsimile Number","E-Mail Address","Legal Agent Name","Legal Agent Address","Shipper Short Code","Achilles Registration Number","Type of credit security provided","Winter only?","Facility Name","Facility Location","Service Provision Category","Execution Date for Tenderer's Agreement With Facility Operator","Storage Withdrawal Capacity, kWh/Day","Withdrawal Response Time, Minutes","Injection Response Time, Minutes","Planned Maintenenace Periods, Dates","Website for Clauses","Allocation Agent","Injection Charge Rate (Optional), p/kWh","Withdrawal Charge Rate (Optional), p/kWh","Injection Overrun Charge Rate (Optional), p/kWh","Withdrawal Overrun Charge Rate (Optional), p/kWh","Capacity Procurement Tranche Number","Storage Space, kWh","Storage Injection Capacity, kWh / day","Annual Service Fee, p/kWh pa","Please tick if the tranche may only be accepted in full","Has Facility Withdrawal Capacity been entered?","Nameplate Facility Withdrawal Rate"]
[null,null,null,{"$f":"A4&\".\"&B4&\".\"&C4","v":".."},{"$f":"'TENDER PACK 1a STORAGE(Sheet A)'!$H$88","v":0},{"$f":"'TENDER PACK 1a STORAGE(Sheet A)'!$H$90","v":0},{"$f":"'TENDER PACK 1a STORAGE(Sheet A)'!$H$91","v":0},{"$f":"'TENDER PACK 1a STORAGE(Sheet A)'!$H$94","v":0},{"$f":"'TENDER PACK 1a STORAGE(Sheet A)'!$H$95","v":0},{"$f":"'TENDER PACK 1a STORAGE(Sheet A)'!$H$96","v":0},{"$f":"'TENDER PACK 1a STORAGE(Sheet A)'!$H$97","v":0},{"$f":"'TENDER PACK 1a STORAGE(Sheet A)'!$H$98","v":0},{"$f":"'TENDER PACK 1a STORAGE(Sheet A)'!$H$100","v":0},{"$f":"'TENDER PACK 1a STORAGE(Sheet A)'!$H$101","v":0},{"$f":"IF('TENDER PACK 1a STORAGE(Sheet A)'!$S$102=2,\"Parent Company Guarantee\",IF('TENDER PACK 1a STORAGE(Sheet A)'!$S$102=3,\"Letter of Credit\",IF('TENDER PACK 1a STORAGE(Sheet A)'!$S$102=4,\"Deposit Deed\",IF('TENDER PACK 1a STORAGE(Sheet A)'!$S$102=1,\"Meets Requirements\",\"UNCHECKED\"))))","v":"Parent Company Guarantee"},"No",{"$f":"'TENDER PACK 1a STORAGE(Sheet A)'!$H$116","v":0},{"$f":"'TENDER PACK 1a STORAGE(Sheet A)'!$H$118","v":0},{"$f":"IF('TENDER PACK 1a STORAGE(Sheet A)'!$S$121=1,\"STORAGE OPERATOR\",IF('TENDER PACK 1a STORAGE(Sheet A)'!$S$121=2,\"Primary Capacity Holder of Storage\",\"UNCHECKED\"))","v":"STORAGE OPERATOR"},{"$f":"'TENDER PACK 1a STORAGE(Sheet A)'!$J$124","v":0},{"$f":"'TENDER PACK 1a STORAGE(Sheet A)'!$H$186","v":0},{"$f":"'TENDER PACK 1a STORAGE(Sheet A)'!$H$144","v":0},{"$f":"'TENDER PACK 1a STORAGE(Sheet A)'!$H$146","v":0},{"$f":"'TENDER PACK 1a STORAGE(Sheet A)'!$H$148","v":"00:00:00"},{"$f":"'TENDER PACK 1a STORAGE(Sheet A)'!$H$152","v":0},{"$f":"'TENDER PACK 1a STORAGE(Sheet A)'!$H$154","v":0},{"$f":"'TENDER PACK 1a STORAGE(Sheet A)'!$H$161","v":0},{"$f":"'TENDER PACK 1a STORAGE(Sheet A)'!$H$163","v":0},{"$f":"'TENDER PACK 1a STORAGE(Sheet A)'!$H$165","v":0},{"$f":"'TENDER PACK 1a STORAGE(Sheet A)'!$H$167","v":0},{"$f":"'TENDER PACK 1a STORAGE(Sheet A)'!$D$186","v":1},{"$f":"'TENDER PACK 1a STORAGE(Sheet A)'!$F$186","v":0},{"$f":"'TENDER PACK 1a STORAGE(Sheet A)'!$J$186","v":0},{"$f":"'TENDER PACK 1a STORAGE(Sheet A)'!$L$186","v":0},{"$f":"'TENDER PACK 1a STORAGE(Sheet A)'!$P$186","v":0},null,{"$f":"'TENDER PACK 1a STORAGE(Sheet A)'!$H$221","v":0}]
[null,null,null,"..",{"$f":"'TENDER PACK 1a STORAGE(Sheet A)'!$H$88","v":0},{"$f":"'TENDER PACK 1a STORAGE(Sheet A)'!$H$90","v":0},{"$f":"'TENDER PACK 1a STORAGE(Sheet A)'!$H$91","v":0},{"$f":"'TENDER PACK 1a STORAGE(Sheet A)'!$H$94","v":0},{"$f":"'TENDER PACK 1a STORAGE(Sheet A)'!$H$95","v":0},{"$f":"'TENDER PACK 1a STORAGE(Sheet A)'!$H$96","v":0},{"$f":"'TENDER PACK 1a STORAGE(Sheet A)'!$H$97","v":0},{"$f":"'TENDER PACK 1a STORAGE(Sheet A)'!$H$98","v":0},{"$f":"'TENDER PACK 1a STORAGE(Sheet A)'!$H$100","v":0},{"$f":"'TENDER PACK 1a STORAGE(Sheet A)'!$H$101","v":0},{"$f":"IF('TENDER PACK 1a STORAGE(Sheet A)'!$S$102=2,\"Parent Company Guarantee\",IF('TENDER PACK 1a STORAGE(Sheet A)'!$S$102=3,\"Letter of Credit\",IF('TENDER PACK 1a STORAGE(Sheet A)'!$S$102=4,\"Deposit Deed\",IF('TENDER PACK 1a STORAGE(Sheet A)'!$S$102=1,\"Meets Requirements\",\"UNCHECKED\"))))","v":"Parent Company Guarantee"},"No",{"$f":"'TENDER PACK 1a STORAGE(Sheet A)'!$H$116","v":0},{"$f":"'TENDER PACK 1a STORAGE(Sheet A)'!$H$118","v":0},{"$f":"IF('TENDER PACK 1a STORAGE(Sheet A)'!$S$121=1,\"STORAGE OPERATOR\",IF('TENDER PACK 1a STORAGE(Sheet A)'!$S$121=2,\"Primary Capacity Holder of Storage\",\"UNCHECKED\"))","v":"STORAGE OPERATOR"},{"$f":"'TENDER PACK 1a STORAGE(Sheet A)'!$J$124","v":0},{"$f":"'TENDER PACK 1a STORAGE(Sheet A)'!$H$188","v":0},{"$f":"'TENDER PACK 1a STORAGE(Sheet A)'!$H$144","v":0},{"$f":"'TENDER PACK 1a STORAGE(Sheet A)'!$H$146","v":0},{"$f":"'TENDER PACK 1a STORAGE(Sheet A)'!$H$148","v":"00:00:00"},{"$f":"'TENDER PACK 1a STORAGE(Sheet A)'!$H$152","v":0},{"$f":"'TENDER PACK 1a STORAGE(Sheet A)'!$H$154","v":0},{"$f":"'TENDER PACK 1a STORAGE(Sheet A)'!$H$161","v":0},{"$f":"'TENDER PACK 1a STORAGE(Sheet A)'!$H$163","v":0},{"$f":"'TENDER PACK 1a STORAGE(Sheet A)'!$H$165","v":0},{"$f":"'TENDER PACK 1a STORAGE(Sheet A)'!$H$167","v":0},{"$f":"'TENDER PACK 1a STORAGE(Sheet A)'!$D$188","v":2},{"$f":"'TENDER PACK 1a STORAGE(Sheet A)'!$F$188","v":0},{"$f":"'TENDER PACK 1a STORAGE(Sheet A)'!$J$188","v":0},{"$f":"'TENDER PACK 1a STORAGE(Sheet A)'!$L$188","v":0},{"$f":"'TENDER PACK 1a STORAGE(Sheet A)'!$P$188","v":0},null,{"$f":"'TENDER PACK 1a STORAGE(Sheet A)'!$H$221","v":0}]
[null,null,null,"..",{"$f":"'TENDER PACK 1a STORAGE(Sheet A)'!$H$88","v":0},{"$f":"'TENDER PACK 1a STORAGE(Sheet A)'!$H$90","v":0},{"$f":"'TENDER PACK 1a STORAGE(Sheet A)'!$H$91","v":0},{"$f":"'TENDER PACK 1a STORAGE(Sheet A)'!$H$94","v":0},{"$f":"'TENDER PACK 1a STORAGE(Sheet A)'!$H$95","v":0},{"$f":"'TENDER PACK 1a STORAGE(Sheet A)'!$H$96","v":0},{"$f":"'TENDER PACK 1a STORAGE(Sheet A)'!$H$97","v":0},{"$f":"'TENDER PACK 1a STORAGE(Sheet A)'!$H$98","v":0},{"$f":"'TENDER PACK 1a STORAGE(Sheet A)'!$H$100","v":0},{"$f":"'TENDER PACK 1a STORAGE(Sheet A)'!$H$101","v":0},{"$f":"IF('TENDER PACK 1a STORAGE(Sheet A)'!$S$102=2,\"Parent Company Guarantee\",IF('TENDER PACK 1a STORAGE(Sheet A)'!$S$102=3,\"Letter of Credit\",IF('TENDER PACK 1a STORAGE(Sheet A)'!$S$102=4,\"Deposit Deed\",IF('TENDER PACK 1a STORAGE(Sheet A)'!$S$102=1,\"Meets Requirements\",\"UNCHECKED\"))))","v":"Parent Company Guarantee"},"No",{"$f":"'TENDER PACK 1a STORAGE(Sheet A)'!$H$116","v":0},{"$f":"'TENDER PACK 1a STORAGE(Sheet A)'!$H$118","v":0},{"$f":"IF('TENDER PACK 1a STORAGE(Sheet A)'!$S$121=1,\"STORAGE OPERATOR\",IF('TENDER PACK 1a STORAGE(Sheet A)'!$S$121=2,\"Primary Capacity Holder of Storage\",\"UNCHECKED\"))","v":"STORAGE OPERATOR"},{"$f":"'TENDER PACK 1a STORAGE(Sheet A)'!$J$124","v":0},{"$f":"'TENDER PACK 1a STORAGE(Sheet A)'!$H$190","v":0},{"$f":"'TENDER PACK 1a STORAGE(Sheet A)'!$H$144","v":0},{"$f":"'TENDER PACK 1a STORAGE(Sheet A)'!$H$146","v":0},{"$f":"'TENDER PACK 1a STORAGE(Sheet A)'!$H$148","v":"00:00:00"},{"$f":"'TENDER PACK 1a STORAGE(Sheet A)'!$H$152","v":0},{"$f":"'TENDER PACK 1a STORAGE(Sheet A)'!$H$154","v":0},{"$f":"'TENDER PACK 1a STORAGE(Sheet A)'!$H$161","v":0},{"$f":"'TENDER PACK 1a STORAGE(Sheet A)'!$H$163","v":0},{"$f":"'TENDER PACK 1a STORAGE(Sheet A)'!$H$165","v":0},{"$f":"'TENDER PACK 1a STORAGE(Sheet A)'!$H$167","v":0},{"$f":"'TENDER PACK 1a STORAGE(Sheet A)'!$D$190","v":3},{"$f":"'TENDER PACK 1a STORAGE(Sheet A)'!$F$190","v":0},{"$f":"'TENDER PACK 1a STORAGE(Sheet A)'!$J$190","v":0},{"$f":"'TENDER PACK 1a STORAGE(Sheet A)'!$L$190","v":0},{"$f":"'TENDER PACK 1a STORAGE(Sheet A)'!$P$190","v":0},null,{"$f":"'TENDER PACK 1a STORAGE(Sheet A)'!$H$221","v":0}]
[null,null,null,"..",{"$f":"'TENDER PACK 1a STORAGE(Sheet A)'!$H$88","v":0},{"$f":"'TENDER PACK 1a STORAGE(Sheet A)'!$H$90","v":0},{"$f":"'TENDER PACK 1a STORAGE(Sheet A)'!$H$91","v":0},{"$f":"'TENDER PACK 1a STORAGE(Sheet A)'!$H$94","v":0},{"$f":"'TENDER PACK 1a STORAGE(Sheet A)'!$H$95","v":0},{"$f":"'TENDER PACK 1a STORAGE(Sheet A)'!$H$96","v":0},{"$f":"'TENDER PACK 1a STORAGE(Sheet A)'!$H$97","v":0},{"$f":"'TENDER PACK 1a STORAGE(Sheet A)'!$H$98","v":0},{"$f":"'TENDER PACK 1a STORAGE(Sheet A)'!$H$100","v":0},{"$f":"'TENDER PACK 1a STORAGE(Sheet A)'!$H$101","v":0},{"$f":"IF('TENDER PACK 1a STORAGE(Sheet A)'!$S$102=2,\"Parent Company Guarantee\",IF('TENDER PACK 1a STORAGE(Sheet A)'!$S$102=3,\"Letter of Credit\",IF('TENDER PACK 1a STORAGE(Sheet A)'!$S$102=4,\"Deposit Deed\",IF('TENDER PACK 1a STORAGE(Sheet A)'!$S$102=1,\"Meets Requirements\",\"UNCHECKED\"))))","v":"Parent Company Guarantee"},"No",{"$f":"'TENDER PACK 1a STORAGE(Sheet A)'!$H$116","v":0},{"$f":"'TENDER PACK 1a STORAGE(Sheet A)'!$H$118","v":0},{"$f":"IF('TENDER PACK 1a STORAGE(Sheet A)'!$S$121=1,\"STORAGE OPERATOR\",IF('TENDER PACK 1a STORAGE(Sheet A)'!$S$121=2,\"Primary Capacity Holder of Storage\",\"UNCHECKED\"))","v":"STORAGE OPERATOR"},{"$f":"'TENDER PACK 1a STORAGE(Sheet A)'!$J$124","v":0},{"$f":"'TENDER PACK 1a STORAGE(Sheet A)'!$H$192","v":0},{"$f":"'TENDER PACK 1a STORAGE(Sheet A)'!$H$144","v":0},{"$f":"'TENDER PACK 1a STORAGE(Sheet A)'!$H$146","v":0},{"$f":"'TENDER PACK 1a STORAGE(Sheet A)'!$H$148","v":"00:00:00"},{"$f":"'TENDER PACK 1a STORAGE(Sheet A)'!$H$152","v":0},{"$f":"'TENDER PACK 1a STORAGE(Sheet A)'!$H$154","v":0},{"$f":"'TENDER PACK 1a STORAGE(Sheet A)'!$H$161","v":0},{"$f":"'TENDER PACK 1a STORAGE(Sheet A)'!$H$163","v":0},{"$f":"'TENDER PACK 1a STORAGE(Sheet A)'!$H$165","v":0},{"$f":"'TENDER PACK 1a STORAGE(Sheet A)'!$H$167","v":0},{"$f":"'TENDER PACK 1a STORAGE(Sheet A)'!$D$192","v":4},{"$f":"'TENDER PACK 1a STORAGE(Sheet A)'!$F$192","v":0},{"$f":"'TENDER PACK 1a STORAGE(Sheet A)'!$J$192","v":0},{"$f":"'TENDER PACK 1a STORAGE(Sheet A)'!$L$192","v":0},{"$f":"'TENDER PACK 1a STORAGE(Sheet A)'!$P$192","v":0},null,{"$f":"'TENDER PACK 1a STORAGE(Sheet A)'!$H$221","v":0}]
[null,null,null,"..",{"$f":"'TENDER PACK 1a STORAGE(Sheet A)'!$H$88","v":0},{"$f":"'TENDER PACK 1a STORAGE(Sheet A)'!$H$90","v":0},{"$f":"'TENDER PACK 1a STORAGE(Sheet A)'!$H$91","v":0},{"$f":"'TENDER PACK 1a STORAGE(Sheet A)'!$H$94","v":0},{"$f":"'TENDER PACK 1a STORAGE(Sheet A)'!$H$95","v":0},{"$f":"'TENDER PACK 1a STORAGE(Sheet A)'!$H$96","v":0},{"$f":"'TENDER PACK 1a STORAGE(Sheet A)'!$H$97","v":0},{"$f":"'TENDER PACK 1a STORAGE(Sheet A)'!$H$98","v":0},{"$f":"'TENDER PACK 1a STORAGE(Sheet A)'!$H$100","v":0},{"$f":"'TENDER PACK 1a STORAGE(Sheet A)'!$H$101","v":0},{"$f":"IF('TENDER PACK 1a STORAGE(Sheet A)'!$S$102=2,\"Parent Company Guarantee\",IF('TENDER PACK 1a STORAGE(Sheet A)'!$S$102=3,\"Letter of Credit\",IF('TENDER PACK 1a STORAGE(Sheet A)'!$S$102=4,\"Deposit Deed\",IF('TENDER PACK 1a STORAGE(Sheet A)'!$S$102=1,\"Meets Requirements\",\"UNCHECKED\"))))","v":"Parent Company Guarantee"},"No",{"$f":"'TENDER PACK 1a STORAGE(Sheet A)'!$H$116","v":0},{"$f":"'TENDER PACK 1a STORAGE(Sheet A)'!$H$118","v":0},{"$f":"IF('TENDER PACK 1a STORAGE(Sheet A)'!$S$121=1,\"STORAGE OPERATOR\",IF('TENDER PACK 1a STORAGE(Sheet A)'!$S$121=2,\"Primary Capacity Holder of Storage\",\"UNCHECKED\"))","v":"STORAGE OPERATOR"},{"$f":"'TENDER PACK 1a STORAGE(Sheet A)'!$J$124","v":0},{"$f":"'TENDER PACK 1a STORAGE(Sheet A)'!$H$194","v":0},{"$f":"'TENDER PACK 1a STORAGE(Sheet A)'!$H$144","v":0},{"$f":"'TENDER PACK 1a STORAGE(Sheet A)'!$H$146","v":0},{"$f":"'TENDER PACK 1a STORAGE(Sheet A)'!$H$148","v":"00:00:00"},{"$f":"'TENDER PACK 1a STORAGE(Sheet A)'!$H$152","v":0},{"$f":"'TENDER PACK 1a STORAGE(Sheet A)'!$H$154","v":0},{"$f":"'TENDER PACK 1a STORAGE(Sheet A)'!$H$161","v":0},{"$f":"'TENDER PACK 1a STORAGE(Sheet A)'!$H$163","v":0},{"$f":"'TENDER PACK 1a STORAGE(Sheet A)'!$H$165","v":0},{"$f":"'TENDER PACK 1a STORAGE(Sheet A)'!$H$167","v":0},{"$f":"'TENDER PACK 1a STORAGE(Sheet A)'!$D$194","v":5},{"$f":"'TENDER PACK 1a STORAGE(Sheet A)'!$F$194","v":0},{"$f":"'TENDER PACK 1a STORAGE(Sheet A)'!$J$194","v":0},{"$f":"'TENDER PACK 1a STORAGE(Sheet A)'!$L$194","v":0},{"$f":"'TENDER PACK 1a STORAGE(Sheet A)'!$P$194","v":0},null,{"$f":"'TENDER PACK 1a STORAGE(Sheet A)'!$H$221","v":0}]
[null,null,null,"..",{"$f":"'TENDER PACK 1a STORAGE(Sheet A)'!$H$88","v":0},{"$f":"'TENDER PACK 1a STORAGE(Sheet A)'!$H$90","v":0},{"$f":"'TENDER PACK 1a STORAGE(Sheet A)'!$H$91","v":0},{"$f":"'TENDER PACK 1a STORAGE(Sheet A)'!$H$94","v":0},{"$f":"'TENDER PACK 1a STORAGE(Sheet A)'!$H$95","v":0},{"$f":"'TENDER PACK 1a STORAGE(Sheet A)'!$H$96","v":0},{"$f":"'TENDER PACK 1a STORAGE(Sheet A)'!$H$97","v":0},{"$f":"'TENDER PACK 1a STORAGE(Sheet A)'!$H$98","v":0},{"$f":"'TENDER PACK 1a STORAGE(Sheet A)'!$H$100","v":0},{"$f":"'TENDER PACK 1a STORAGE(Sheet A)'!$H$101","v":0},{"$f":"IF('TENDER PACK 1a STORAGE(Sheet A)'!$S$102=2,\"Parent Company Guarantee\",IF('TENDER PACK 1a STORAGE(Sheet A)'!$S$102=3,\"Letter of Credit\",IF('TENDER PACK 1a STORAGE(Sheet A)'!$S$102=4,\"Deposit Deed\",IF('TENDER PACK 1a STORAGE(Sheet A)'!$S$102=1,\"Meets Requirements\",\"UNCHECKED\"))))","v":"Parent Company Guarantee"},"No",{"$f":"'TENDER PACK 1a STORAGE(Sheet A)'!$H$116","v":0},{"$f":"'TENDER PACK 1a STORAGE(Sheet A)'!$H$118","v":0},{"$f":"IF('TENDER PACK 1a STORAGE(Sheet A)'!$S$121=1,\"STORAGE OPERATOR\",IF('TENDER PACK 1a STORAGE(Sheet A)'!$S$121=2,\"Primary Capacity Holder of Storage\",\"UNCHECKED\"))","v":"STORAGE OPERATOR"},{"$f":"'TENDER PACK 1a STORAGE(Sheet A)'!$J$124","v":0},{"$f":"'TENDER PACK 1a STORAGE(Sheet A)'!$H$196","v":0},{"$f":"'TENDER PACK 1a STORAGE(Sheet A)'!$H$144","v":0},{"$f":"'TENDER PACK 1a STORAGE(Sheet A)'!$H$146","v":0},{"$f":"'TENDER PACK 1a STORAGE(Sheet A)'!$H$148","v":"00:00:00"},{"$f":"'TENDER PACK 1a STORAGE(Sheet A)'!$H$152","v":0},{"$f":"'TENDER PACK 1a STORAGE(Sheet A)'!$H$154","v":0},{"$f":"'TENDER PACK 1a STORAGE(Sheet A)'!$H$161","v":0},{"$f":"'TENDER PACK 1a STORAGE(Sheet A)'!$H$163","v":0},{"$f":"'TENDER PACK 1a STORAGE(Sheet A)'!$H$165","v":0},{"$f":"'TENDER PACK 1a STORAGE(Sheet A)'!$H$167","v":0},{"$f":"'TENDER PACK 1a STORAGE(Sheet A)'!$D$196","v":6},{"$f":"'TENDER PACK 1a STORAGE(Sheet A)'!$F$196","v":0},{"$f":"'TENDER PACK 1a STORAGE(Sheet A)'!$J$196","v":0},{"$f":"'TENDER PACK 1a STORAGE(Sheet A)'!$L$196","v":0},{"$f":"'TENDER PACK 1a STORAGE(Sheet A)'!$P$196","v":0},null,{"$f":"'TENDER PACK 1a STORAGE(Sheet A)'!$H$221","v":0}]
[null,null,null,"..",{"$f":"'TENDER PACK 1a STORAGE(Sheet A)'!$H$88","v":0},{"$f":"'TENDER PACK 1a STORAGE(Sheet A)'!$H$90","v":0},{"$f":"'TENDER PACK 1a STORAGE(Sheet A)'!$H$91","v":0},{"$f":"'TENDER PACK 1a STORAGE(Sheet A)'!$H$94","v":0},{"$f":"'TENDER PACK 1a STORAGE(Sheet A)'!$H$95","v":0},{"$f":"'TENDER PACK 1a STORAGE(Sheet A)'!$H$96","v":0},{"$f":"'TENDER PACK 1a STORAGE(Sheet A)'!$H$97","v":0},{"$f":"'TENDER PACK 1a STORAGE(Sheet A)'!$H$98","v":0},{"$f":"'TENDER PACK 1a STORAGE(Sheet A)'!$H$100","v":0},{"$f":"'TENDER PACK 1a STORAGE(Sheet A)'!$H$101","v":0},{"$f":"IF('TENDER PACK 1a STORAGE(Sheet A)'!$S$102=2,\"Parent Company Guarantee\",IF('TENDER PACK 1a STORAGE(Sheet A)'!$S$102=3,\"Letter of Credit\",IF('TENDER PACK 1a STORAGE(Sheet A)'!$S$102=4,\"Deposit Deed\",IF('TENDER PACK 1a STORAGE(Sheet A)'!$S$102=1,\"Meets Requirements\",\"UNCHECKED\"))))","v":"Parent Company Guarantee"},"No",{"$f":"'TENDER PACK 1a STORAGE(Sheet A)'!$H$116","v":0},{"$f":"'TENDER PACK 1a STORAGE(Sheet A)'!$H$118","v":0},{"$f":"IF('TENDER PACK 1a STORAGE(Sheet A)'!$S$121=1,\"STORAGE OPERATOR\",IF('TENDER PACK 1a STORAGE(Sheet A)'!$S$121=2,\"Primary Capacity Holder of Storage\",\"UNCHECKED\"))","v":"STORAGE OPERATOR"},{"$f":"'TENDER PACK 1a STORAGE(Sheet A)'!$J$124","v":0},{"$f":"'TENDER PACK 1a STORAGE(Sheet A)'!$H$198","v":0},{"$f":"'TENDER PACK 1a STORAGE(Sheet A)'!$H$144","v":0},{"$f":"'TENDER PACK 1a STORAGE(Sheet A)'!$H$146","v":0},{"$f":"'TENDER PACK 1a STORAGE(Sheet A)'!$H$148","v":"00:00:00"},{"$f":"'TENDER PACK 1a STORAGE(Sheet A)'!$H$152","v":0},{"$f":"'TENDER PACK 1a STORAGE(Sheet A)'!$H$154","v":0},{"$f":"'TENDER PACK 1a STORAGE(Sheet A)'!$H$161","v":0},{"$f":"'TENDER PACK 1a STORAGE(Sheet A)'!$H$163","v":0},{"$f":"'TENDER PACK 1a STORAGE(Sheet A)'!$H$165","v":0},{"$f":"'TENDER PACK 1a STORAGE(Sheet A)'!$H$167","v":0},{"$f":"'TENDER PACK 1a STORAGE(Sheet A)'!$D$198","v":7},{"$f":"'TENDER PACK 1a STORAGE(Sheet A)'!$F$198","v":0},{"$f":"'TENDER PACK 1a STORAGE(Sheet A)'!$J$198","v":0},{"$f":"'TENDER PACK 1a STORAGE(Sheet A)'!$L$198","v":0},{"$f":"'TENDER PACK 1a STORAGE(Sheet A)'!$P$198","v":0},null,{"$f":"'TENDER PACK 1a STORAGE(Sheet A)'!$H$221","v":0}]
[null,null,null,"..",{"$f":"'TENDER PACK 1a STORAGE(Sheet A)'!$H$88","v":0},{"$f":"'TENDER PACK 1a STORAGE(Sheet A)'!$H$90","v":0},{"$f":"'TENDER PACK 1a STORAGE(Sheet A)'!$H$91","v":0},{"$f":"'TENDER PACK 1a STORAGE(Sheet A)'!$H$94","v":0},{"$f":"'TENDER PACK 1a STORAGE(Sheet A)'!$H$95","v":0},{"$f":"'TENDER PACK 1a STORAGE(Sheet A)'!$H$96","v":0},{"$f":"'TENDER PACK 1a STORAGE(Sheet A)'!$H$97","v":0},{"$f":"'TENDER PACK 1a STORAGE(Sheet A)'!$H$98","v":0},{"$f":"'TENDER PACK 1a STORAGE(Sheet A)'!$H$100","v":0},{"$f":"'TENDER PACK 1a STORAGE(Sheet A)'!$H$101","v":0},{"$f":"IF('TENDER PACK 1a STORAGE(Sheet A)'!$S$102=2,\"Parent Company Guarantee\",IF('TENDER PACK 1a STORAGE(Sheet A)'!$S$102=3,\"Letter of Credit\",IF('TENDER PACK 1a STORAGE(Sheet A)'!$S$102=4,\"Deposit Deed\",IF('TENDER PACK 1a STORAGE(Sheet A)'!$S$102=1,\"Meets Requirements\",\"UNCHECKED\"))))","v":"Parent Company Guarantee"},"No",{"$f":"'TENDER PACK 1a STORAGE(Sheet A)'!$H$116","v":0},{"$f":"'TENDER PACK 1a STORAGE(Sheet A)'!$H$118","v":0},{"$f":"IF('TENDER PACK 1a STORAGE(Sheet A)'!$S$121=1,\"STORAGE OPERATOR\",IF('TENDER PACK 1a STORAGE(Sheet A)'!$S$121=2,\"Primary Capacity Holder of Storage\",\"UNCHECKED\"))","v":"STORAGE OPERATOR"},{"$f":"'TENDER PACK 1a STORAGE(Sheet A)'!$J$124","v":0},{"$f":"'TENDER PACK 1a STORAGE(Sheet A)'!$H$200","v":0},{"$f":"'TENDER PACK 1a STORAGE(Sheet A)'!$H$144","v":0},{"$f":"'TENDER PACK 1a STORAGE(Sheet A)'!$H$146","v":0},{"$f":"'TENDER PACK 1a STORAGE(Sheet A)'!$H$148","v":"00:00:00"},{"$f":"'TENDER PACK 1a STORAGE(Sheet A)'!$H$152","v":0},{"$f":"'TENDER PACK 1a STORAGE(Sheet A)'!$H$154","v":0},{"$f":"'TENDER PACK 1a STORAGE(Sheet A)'!$H$161","v":0},{"$f":"'TENDER PACK 1a STORAGE(Sheet A)'!$H$163","v":0},{"$f":"'TENDER PACK 1a STORAGE(Sheet A)'!$H$165","v":0},{"$f":"'TENDER PACK 1a STORAGE(Sheet A)'!$H$167","v":0},{"$f":"'TENDER PACK 1a STORAGE(Sheet A)'!$D$200","v":8},{"$f":"'TENDER PACK 1a STORAGE(Sheet A)'!$F$200","v":0},{"$f":"'TENDER PACK 1a STORAGE(Sheet A)'!$J$200","v":0},{"$f":"'TENDER PACK 1a STORAGE(Sheet A)'!$L$200","v":0},{"$f":"'TENDER PACK 1a STORAGE(Sheet A)'!$P$200","v":0},null,{"$f":"'TENDER PACK 1a STORAGE(Sheet A)'!$H$221","v":0}]
[null,null,null,"..",{"$f":"'TENDER PACK 1a STORAGE(Sheet A)'!$H$88","v":0},{"$f":"'TENDER PACK 1a STORAGE(Sheet A)'!$H$90","v":0},{"$f":"'TENDER PACK 1a STORAGE(Sheet A)'!$H$91","v":0},{"$f":"'TENDER PACK 1a STORAGE(Sheet A)'!$H$94","v":0},{"$f":"'TENDER PACK 1a STORAGE(Sheet A)'!$H$95","v":0},{"$f":"'TENDER PACK 1a STORAGE(Sheet A)'!$H$96","v":0},{"$f":"'TENDER PACK 1a STORAGE(Sheet A)'!$H$97","v":0},{"$f":"'TENDER PACK 1a STORAGE(Sheet A)'!$H$98","v":0},{"$f":"'TENDER PACK 1a STORAGE(Sheet A)'!$H$100","v":0},{"$f":"'TENDER PACK 1a STORAGE(Sheet A)'!$H$101","v":0},{"$f":"IF('TENDER PACK 1a STORAGE(Sheet A)'!$S$102=2,\"Parent Company Guarantee\",IF('TENDER PACK 1a STORAGE(Sheet A)'!$S$102=3,\"Letter of Credit\",IF('TENDER PACK 1a STORAGE(Sheet A)'!$S$102=4,\"Deposit Deed\",IF('TENDER PACK 1a STORAGE(Sheet A)'!$S$102=1,\"Meets Requirements\",\"UNCHECKED\"))))","v":"Parent Company Guarantee"},"No",{"$f":"'TENDER PACK 1a STORAGE(Sheet A)'!$H$116","v":0},{"$f":"'TENDER PACK 1a STORAGE(Sheet A)'!$H$118","v":0},{"$f":"IF('TENDER PACK 1a STORAGE(Sheet A)'!$S$121=1,\"STORAGE OPERATOR\",IF('TENDER PACK 1a STORAGE(Sheet A)'!$S$121=2,\"Primary Capacity Holder of Storage\",\"UNCHECKED\"))","v":"STORAGE OPERATOR"},{"$f":"'TENDER PACK 1a STORAGE(Sheet A)'!$J$124","v":0},{"$f":"'TENDER PACK 1a STORAGE(Sheet A)'!$H$202","v":0},{"$f":"'TENDER PACK 1a STORAGE(Sheet A)'!$H$144","v":0},{"$f":"'TENDER PACK 1a STORAGE(Sheet A)'!$H$146","v":0},{"$f":"'TENDER PACK 1a STORAGE(Sheet A)'!$H$148","v":"00:00:00"},{"$f":"'TENDER PACK 1a STORAGE(Sheet A)'!$H$152","v":0},{"$f":"'TENDER PACK 1a STORAGE(Sheet A)'!$H$154","v":0},{"$f":"'TENDER PACK 1a STORAGE(Sheet A)'!$H$161","v":0},{"$f":"'TENDER PACK 1a STORAGE(Sheet A)'!$H$163","v":0},{"$f":"'TENDER PACK 1a STORAGE(Sheet A)'!$H$165","v":0},{"$f":"'TENDER PACK 1a STORAGE(Sheet A)'!$H$167","v":0},{"$f":"'TENDER PACK 1a STORAGE(Sheet A)'!$D$202","v":9},{"$f":"'TENDER PACK 1a STORAGE(Sheet A)'!$F$202","v":0},{"$f":"'TENDER PACK 1a STORAGE(Sheet A)'!$J$202","v":0},{"$f":"'TENDER PACK 1a STORAGE(Sheet A)'!$L$202","v":0},{"$f":"'TENDER PACK 1a STORAGE(Sheet A)'!$P$202","v":0},null,{"$f":"'TENDER PACK 1a STORAGE(Sheet A)'!$H$221","v":0}]
[null,null,null,"..",{"$f":"'TENDER PACK 1a STORAGE(Sheet A)'!$H$88","v":0},{"$f":"'TENDER PACK 1a STORAGE(Sheet A)'!$H$90","v":0},{"$f":"'TENDER PACK 1a STORAGE(Sheet A)'!$H$91","v":0},{"$f":"'TENDER PACK 1a STORAGE(Sheet A)'!$H$94","v":0},{"$f":"'TENDER PACK 1a STORAGE(Sheet A)'!$H$95","v":0},{"$f":"'TENDER PACK 1a STORAGE(Sheet A)'!$H$96","v":0},{"$f":"'TENDER PACK 1a STORAGE(Sheet A)'!$H$97","v":0},{"$f":"'TENDER PACK 1a STORAGE(Sheet A)'!$H$98","v":0},{"$f":"'TENDER PACK 1a STORAGE(Sheet A)'!$H$100","v":0},{"$f":"'TENDER PACK 1a STORAGE(Sheet A)'!$H$101","v":0},{"$f":"IF('TENDER PACK 1a STORAGE(Sheet A)'!$S$102=2,\"Parent Company Guarantee\",IF('TENDER PACK 1a STORAGE(Sheet A)'!$S$102=3,\"Letter of Credit\",IF('TENDER PACK 1a STORAGE(Sheet A)'!$S$102=4,\"Deposit Deed\",IF('TENDER PACK 1a STORAGE(Sheet A)'!$S$102=1,\"Meets Requirements\",\"UNCHECKED\"))))","v":"Parent Company Guarantee"},"No",{"$f":"'TENDER PACK 1a STORAGE(Sheet A)'!$H$116","v":0},{"$f":"'TENDER PACK 1a STORAGE(Sheet A)'!$H$118","v":0},{"$f":"IF('TENDER PACK 1a STORAGE(Sheet A)'!$S$121=1,\"STORAGE OPERATOR\",IF('TENDER PACK 1a STORAGE(Sheet A)'!$S$121=2,\"Primary Capacity Holder of Storage\",\"UNCHECKED\"))","v":"STORAGE OPERATOR"},{"$f":"'TENDER PACK 1a STORAGE(Sheet A)'!$J$124","v":0},{"$f":"'TENDER PACK 1a STORAGE(Sheet A)'!$H$204","v":0},{"$f":"'TENDER PACK 1a STORAGE(Sheet A)'!$H$144","v":0},{"$f":"'TENDER PACK 1a STORAGE(Sheet A)'!$H$146","v":0},{"$f":"'TENDER PACK 1a STORAGE(Sheet A)'!$H$148","v":"00:00:00"},{"$f":"'TENDER PACK 1a STORAGE(Sheet A)'!$H$152","v":0},{"$f":"'TENDER PACK 1a STORAGE(Sheet A)'!$H$154","v":0},{"$f":"'TENDER PACK 1a STORAGE(Sheet A)'!$H$161","v":0},{"$f":"'TENDER PACK 1a STORAGE(Sheet A)'!$H$163","v":0},{"$f":"'TENDER PACK 1a STORAGE(Sheet A)'!$H$165","v":0},{"$f":"'TENDER PACK 1a STORAGE(Sheet A)'!$H$167","v":0},{"$f":"'TENDER PACK 1a STORAGE(Sheet A)'!$D$204","v":10},{"$f":"'TENDER PACK 1a STORAGE(Sheet A)'!$F$204","v":0},{"$f":"'TENDER PACK 1a STORAGE(Sheet A)'!$J$204","v":0},{"$f":"'TENDER PACK 1a STORAGE(Sheet A)'!$L$204","v":0},{"$f":"'TENDER PACK 1a STORAGE(Sheet A)'!$P$204","v":0},null,{"$f":"'TENDER PACK 1a STORAGE(Sheet A)'!$H$221","v":0}]

{"sheet":"TENDER PACK 1a STORAGE(Sheet B)","index":2,"n_rows":222,"n_cols":19,"rows_kept":222,"cut":false,"hidden":false,"merged":[[49,3,61,16],[53,18,55,19],[82,3,83,16],[15,3,21,16],[17,18,20,19],[23,3,23,16],[23,18,24,19],[24,3,24,16],[26,3,38,16],[27,18,29,19],[2,3,6,16],[3,18,5,19],[8,3,10,11],[8,12,10,12],[8,13,10,16],[12,3,13,16],[42,3,42,16],[43,3,47,16],[43,18,45,19],[85,3,85,16],[87,2,88,2],[87,3,88,6],[89,3,89,6],[94,7,94,16],[93,7,93,16],[90,7,92,16],[89,7,89,16],[87,7,88,16],[90,2,92,2],[90,3,92,6],[93,3,93,6],[94,3,94,6],[99,3,99,6],[100,3,100,6],[101,2,102,2],[101,3,102,6],[95,3,95,6],[96,3,96,6],[97,2,98,2],[97,3,98,6],[101,7,102,16],[100,7,100,16],[99,7,99,16],[97,7,98,16],[96,7,96,16],[95,7,95,16],[113,2,114,2],[113,3,115,6],[116,2,117,2],[116,3,118,6],[104,3,104,16],[106,3,107,16],[109,3,109,16],[111,2,112,2],[111,3,112,6],[111,7,112,16],[116,7,118,16],[113,7,115,16],[119,2,120,2],[119,3,120,6],[130,3,131,16],[133,3,133,16],[135,2,136,2],[124,2,126,2],[119,7,120,16],[121,3,123,6],[121,7,123,16],[124,3,127,6],[124,7,127,16],[135,3,137,16],[142,2,145,2],[142,3,145,6],[142,15,145,16],[146,2,147,2],[146,3,147,6],[138,2,139,2],[138,3,139,6],[138,15,139,16],[140,2,141,2],[140,3,141,6],[140,15,141,16],[146,7,147,16],[142,7,145,14],[140,7,141,14],[138,7,139,14],[148,2,149,2],[148,3,149,6],[151,3,151,16],[153,3,153,16],[155,2,156,2],[155,3,156,6],[155,15,156,16],[148,7,149,16],[155,7,156,14],[161,2,162,2],[161,3,162,6],[161,15,162,16],[170,3,171,16],[173,3,173,16],[157,2,158,2],[157,3,158,6],[157,15,158,16],[159,2,160,2],[159,3,160,6],[159,15,160,16],[164,2,165,2],[164,3,166,6],[164,15,166,16],[157,7,158,14],[159,7,160,14],[161,7,162,14],[164,7,166,14],[174,3,174,4],[174,13,174,14],[174,15,174,16],[175,3,179,4],[175,13,179,14],[175,15,179,16],[175,5,179,6],[175,9,179,10],[175,11,179,12],[174,5,174,6],[174,9,174,10],[174,11,174,12],[175,7,179,8],[174,7,174,8],[180,3,181,4],[180,13,181,14],[180,15,181,16],[182,3,183,4],[182,13,183,14],[182,15,183,16],[180,5,181,6],[182,5,183,6],[180,9,181,10],[182,9,183,10],[180,11,181,12],[182,11,183,12],[180,7,181,8],[182,7,183,8],[184,3,185,4],[184,13,185,14],[184,15,185,16],[186,3,187,4],[186,13,187,14],[186,15,187,16],[184,5,185,6],[186,5,187,6],[184,9,185,10],[186,9,187,10],[184,11,185,12],[186,11,187,12],[184,7,185,8],[186,7,187,8],[188,3,189,4],[188,13,189,14],[188,15,189,16],[190,3,191,4],[190,13,191,14],[190,15,191,16],[188,5,189,6],[190,5,191,6],[188,9,189,10],[190,9,191,10],[188,11,189,12],[190,11,191,12],[188,7,189,8],[190,7,191,8],[192,3,193,4],[192,13,193,14],[192,15,193,16],[194,3,195,4],[194,13,195,14],[194,15,195,16],[192,5,193,6],[194,5,195,6],[192,9,193,10],[194,9,195,10],[192,11,193,12],[194,11,195,12],[192,7,193,8],[194,7,195,8],[196,3,197,4],[196,13,197,14],[196,15,197,16],[198,3,199,4],[198,13,199,14],[198,15,199,16],[196,5,197,6],[198,5,199,6],[196,9,197,10],[198,9,199,10],[196,11,197,12],[198,11,199,12],[196,7,197,8],[198,7,199,8],[213,3,213,16],[219,3,219,16],[220,3,220,16],[221,3,221,10],[221,11,221,16],[200,3,201,4],[200,13,201,14],[200,15,201,16],[210,3,211,16],[200,5,201,6],[200,9,201,10],[200,11,201,12],[200,7,201,8],[215,3,216,6],[215,7,216,14],[215,15,216,16],[214,3,214,16],[217,3,217,16]]}
[]
[]
[null,null,null,"TENDER PACK 1A\nOPERATING MARGINS\n2024/25 GAS CAPACITY TENDER (STORAGE - FACILITY OPERATOR)\nSHEET B - OPTIONAL 12 MONTH BID"]
[]
[]
[]
[]
[]
[null,null,null,"This tender pack is designed for;\n• Gas Storage Facility Operators\n",null,null,null,null,null,null,null,null,null,"Submission of this sheet is optional for Storage Tenderers"]
[]
[]
[]
[null,null,null,"Issued November 2023"]
[]
[]
[null,null,null,"Produced by National  Gas Transmission\nNational  Gas Transmission plc\nNational Grid House\nWarwick Technology Park\nGallows Hill\nWarwick\nCV34 6DA"]
[]
[]
[]
[]
[]
[]
[]
[null,null,null,"Website:"]
[null,null,null,"https://www.nationalgas.com/uk/gas-transmission/balancing/operating-margins-om"]
[]
[null,null,null,"PLEASE NOTE:\nThis document should be read in conjunction with the template Operating Margins agreements (found on the Operating Margins Homepage) and the document entitled \"Tender Guidance Document 2024/25\".\n\nSpecific guidance on how to complete these tender sheets is provided in Sections 7 & 8 of the Operating Margins Tender Guidance Document with specific cross-references to these tender sheets via superscript numbers adjacent to the relevant fields of information. Please also refer to Section 6 \"Requirements of the Tender Process\" in order to understand what must accompany the tender sheets as part of submission in order that assessment can proceed on any tenders received.\n\nTerms and phrases used in this document have the meanings set out or referred to in the template Operating Margins agreements and/or the Operating Margins Tender Guidance Document."]
[]
[]
[]
[]
[]
[]
[]
[]
[]
[]
[]
[]
[]
[]
[]
[null,null,null,"IMPORTANT INFORMATION - PLEASE READ:"]
[null,null,null,"• All parts of 'Sheet A' must be completed by all Storage Facility Operator tenderers and submitted to be eligible for assessment.\n• A tenderer may submit an additional proposal for a 12 month OM service in the form of 'Sheet B', whereby tranches are split differently. This is optional.\n\n\n**Volumes in Sheets A and B will be treated as mutually exclusive - i.e. National Gas will only consider accepting tranche(s) from ONE of Sheet A or Sheet B.**"]
[]
[]
[]
[]
[]
[null,null,null,"Completed Tenders should be submitted by 13:00 hours (GMT) on Monday 8th January 2024 via Ariba.\n\nThe completed Tender Pack should be uploaded with a filename which includes the company name and site.\nAfter uploading the Tender Pack document, terms and conditions must be accepted before submitting.\nSubmissions can be revised until the deadline."]
[]
[]
[]
[]
[]
[]
[]
[]
[]
[]
[]
[]
[]
[]
[]
[]
[]
[]
[]
[]
[]
[]
[]
[]
[]
[]
[]
[]
[]
[]
[]
[]
[null,null,null,"2024/25 OM CAPACITY TENDER"]
[]
[]
[null,null,null,"Part 1: Tenderer Details"]
[]
[null,null,1,"Tenderer's Company Name\n(including company number)"]
[]
[null,null,2,"Company Representative, Job Title"]
[null,null,3,"Company Representative Address\n(full address including postcode)"]
[]
[]
[null,null,4,"Telephone Number"]
[null,null,5,"Facsimile Number"]
[null,null,6,"Email Address"]
[null,null,7,"Legal Agent Name"]
[null,null,8,"Legal Agent Address"]
[]
[null,null,9,"Shipper Short Code"]
[null,null,10,"Achilles Registration Number"]
[null,null,11,"Type of Credit Security Provided",null,null,null,null,null,null,null,null,null,null,null,null,null,null,4]
[]
[]
[null,null,null,"Part 2"]
[]
[null,null,null,"[See OM Tenderers Contract Response Form if such amendments are proposed]\nIf no amendments are proposed please go to Part 3"]
[]
[]
[null,null,null,"Part 3: Facility Details"]
[]
[null,null,12,"Facility Name\n(including company number if different)"]
[]
[null,null,13,"Facility Location\n(full address including postcode)"]
[]
[]
[null,null,null,null,null,null,null,null,null,null,null,null,null,null,null,null,null,null,0]
[]
[]
[]
[]
[null,null,null,"Duration of Service",null,null,null,"12 Months (01/05/2024 - 30/04/2025)"]
[null,null,14]
[]
[null,null,15,"Service Provider contact details for operational notices \nEmployee Position / role, Address, Telephone numbers, fax and email details."]
[]
[]
[]
[]
[]
[null,null,null,"2024/25 OM CAPACITY TENDER"]
[]
[]
[null,null,null,"Part 4: Deliverability & Availability"]
[]
[null,null,null,"FOR ENTERING STORAGE WITHDRAWAL AND INJECTION  RATES PLEASE SEE 27 AND 28"]
[]
[]
[null,null,16,"Withdrawal Response Time",null,null,null,null,null,null,null,null,null,null,null,"Minutes"]
[]
[null,null,17,"Injection Response Time",null,null,null,null,null,null,null,null,null,null,null,"As defined by tenderer"]
[]
[null,null,18,"Planned Maintenance Periods",null,null,null,null,null,null,null,null,null,null,null,"Dates"]
[]
[]
[]
[null,null,19,"Website for Service Availability / Unavailability"]
[]
[null,null,20,"Allocation Agent                                                                  (Name, Address, Tel No)"]
[]
[]
[null,null,null,"Part 5: Charges & Capacity"]
[]
[null,null,null,"Where charges are to be levied for the provision / use of this service, these must be quantified below"]
[]
[null,null,21,"Injection Charge Rate\n(optional)",null,null,null,null,null,null,null,null,null,null,null,"p/kWh"]
[]
[null,null,22,"Withdrawal Charge Rate\n(optional)",null,null,null,null,null,null,null,null,null,null,null,"p/kWh"]
[]
[null,null,23,"Injection Overrun Charge Rate\n(optional)",null,null,null,null,null,null,null,null,null,null,null,"p/kWh"]
[]
[null,null,24,"Withdrawal Overrun Charge Rate\n(optional)",null,null,null,null,null,null,null,null,null,null,null,"p/kWh"]
[]
[]
[]
[]
[]
[]
[]
[]
[null,null,null,"2024/25 OM CAPACITY TENDER"]
[]
[]
[null,null,null,"Part 5: Charges & Capacity (Continued)"]
[null,null,null,25,null,26,null,27,null,28,null,29,null,30,null,31]
[null,null,null,"Capacity Procurement Tranche Number",null,"Storage Space (in kWh)",null,"Storage Withdrawal Capacity (in kWh per day) this must be greater than or equal to Storage Space. ",null,"Storage Injection Capacity (in kWh per day)",null,"Annual Service Fee (in pence per kWh per annum)",null,"Annual Service Fee (£)",null,"Tranche may only be accepted in full (YES / NO)"]
[]
[]
[]
[]
[null,null,null,1,null,null,null,null,null,null,null,null,null,{"$f":"(L181*F181)/100","v":0},null,null,null,null,false]
[]
[null,null,null,2,null,null,null,null,null,null,null,null,null,{"$f":"(L183*F183)/100","v":0},null,null,null,null,false]
[]
[null,null,null,3,null,null,null,null,null,null,null,null,null,{"$f":"(L185*F185)/100","v":0},null,null,null,null,false]
[]
[null,null,null,4,null,null,null,null,null,null,null,null,null,{"$f":"(L187*F187)/100","v":0},null,null,null,null,false]
[]
[null,null,null,5,null,null,null,null,null,null,null,null,null,{"$f":"(L189*F189)/100","v":0},null,null,null,null,false]
[]
[null,null,null,6,null,null,null,null,null,null,null,null,null,{"$f":"(L191*F191)/100","v":0},null,null,null,null,false]
[]
[null,null,null,7,null,null,null,null,null,null,null,null,null,{"$f":"(L193*F193)/100","v":0},null,null,null,null,false]
[]
[null,null,null,8,null,null,null,null,null,null,null,null,null,{"$f":"(L195*F195)/100","v":0},null,null,null,null,false]
[]
[null,null,null,9,null,null,null,null,null,null,null,null,null,{"$f":"(L197*F197)/100","v":0},null,null,null,null,false]
[]
[null,null,null,10,null,null,null,null,null,null,null,null,null,{"$f":"(L199*F199)/100","v":0},null,null,null,null,false]
[]
[null,null,null,"Total",null,{"$f":"SUM(F181:G200)","v":0},null,{"$f":"SUM(H181:I200)","v":0},null,{"$f":"SUM(J181:K200)","v":0},null,null,null,{"$f":"SUM(N181:O200)","v":0}]
[]
[]
[]
[]
[]
[]
[]
[]
[]
[null,null,null,"2024/25 OM CAPACITY TENDER\n"]
[]
[]
[null,null,null,"Part 6: Facility Withdrawal Capacity (Nominal) (Tender Pack 1)"]
[]
[null,null,32,"Nameplate Facility Withdrawal Rate",null,null,null,null,null,null,null,null,null,null,null,"kWh/h"]
[]
[]
[]
[null,null,33,"Facility Performance Curve"]
[null,null,null,"Please use the below space to describe the deliverability at different stock levels"]
[null,null,null,"Facility Gas In Storage (kWh)",null,null,null,null,null,null,null,"Maximum Facility Withdrawal Rate (kWh/h)"]

{"sheet":"DC1B","index":3,"n_rows":13,"n_cols":37,"rows_kept":13,"cut":false,"hidden":true,"merged":[[0,2,1,9]]}
[null,null,"Data Collection Tab for Contracts Team"]
[]
["Tender Pack","Tender Ref","Tranche Ref","Main Ref","Tenderer's Company Name","Company Representative","Company Representative Address","Telephone Number","Facsimile Number","E-Mail Address","Legal Agent Name","Legal Agent Address","Shipper Short Code","Achilles Registration Number","Type of credit security provided","Winter only?","Facility Name","Facility Location","Service Provision Category","Execution Date for Tenderer's Agreement With Facility Operator","Storage Withdrawal Capacity, kWh/Day","Withdrawal Response Time, Minutes","Injection Response Time, Minutes","Planned Maintenenace Periods, Dates","Website for Clauses","Allocation Agent","Injection Charge Rate (Optional), p/kWh","Withdrawal Charge Rate (Optional), p/kWh","Injection Overrun Charge Rate (Optional), p/kWh","Withdrawal Overrun Charge Rate (Optional), p/kWh","Capacity Procurement Tranche Number","Storage Space, kWh","Storage Injection Capacity, kWh / day","Annual Service Fee, p/kWh pa","Please tick if the tranche may only be accepted in full","Has Facility Withdrawal Capacity been entered?","Nameplate Facility Withdrawal Rate"]
[null,null,null,{"$f":"A4&\".\"&B4&\".\"&C4","v":".."},{"$f":"'TENDER PACK 1a STORAGE(Sheet B)'!$H$88","v":0},{"$f":"'TENDER PACK 1a STORAGE(Sheet B)'!$H$90","v":0},{"$f":"'TENDER PACK 1a STORAGE(Sheet B)'!$H$91","v":0},{"$f":"'TENDER PACK 1a STORAGE(Sheet B)'!$H$94","v":0},{"$f":"'TENDER PACK 1a STORAGE(Sheet B)'!$H$95","v":0},{"$f":"'TENDER PACK 1a STORAGE(Sheet B)'!$H$96","v":0},{"$f":"'TENDER PACK 1a STORAGE(Sheet B)'!$H$97","v":0},{"$f":"'TENDER PACK 1a STORAGE(Sheet B)'!$H$98","v":0},{"$f":"'TENDER PACK 1a STORAGE(Sheet B)'!$H$100","v":0},{"$f":"'TENDER PACK 1a STORAGE(Sheet B)'!$H$101","v":0},{"$f":"IF('TENDER PACK 1a STORAGE(Sheet B)'!$S$102=2,\"Parent Company Guarantee\",IF('TENDER PACK 1a STORAGE(Sheet B)'!$S$102=3,\"Letter of Credit\",IF('TENDER PACK 1a STORAGE(Sheet B)'!$S$102=4,\"Deposit Deed\",IF('TENDER PACK 1a STORAGE(Sheet B)'!$S$102=1,\"Meets Requirements\",\"UNCHECKED\"))))","v":"Deposit Deed"},"No",{"$f":"'TENDER PACK 1a STORAGE(Sheet B)'!$H$112","v":0},{"$f":"'TENDER PACK 1a STORAGE(Sheet B)'!$H$114","v":0},{"$f":"IF('TENDER PACK 1a STORAGE(Sheet A)'!$S$121=1,\"STORAGE OPERATOR\",IF('TENDER PACK 1a STORAGE(Sheet A)'!$S$121=2,\"Primary Capacity Holder of Storage\",\"UNCHECKED\"))","v":"STORAGE OPERATOR"},{"$f":"'TENDER PACK 1a STORAGE(Sheet B)'!$H$120","v":0},{"$f":"'TENDER PACK 1a STORAGE(Sheet B)'!$H$181","v":0},{"$f":"'TENDER PACK 1a STORAGE(Sheet B)'!$H$139","v":0},{"$f":"'TENDER PACK 1a STORAGE(Sheet B)'!$H$141","v":0},{"$f":"'TENDER PACK 1a STORAGE(Sheet B)'!$H$143","v":0},{"$f":"'TENDER PACK 1a STORAGE(Sheet B)'!$H$147","v":0},{"$f":"'TENDER PACK 1a STORAGE(Sheet B)'!$H$149","v":0},{"$f":"'TENDER PACK 1a STORAGE(Sheet B)'!$H$156","v":0},{"$f":"'TENDER PACK 1a STORAGE(Sheet B)'!$H$158","v":0},{"$f":"'TENDER PACK 1a STORAGE(Sheet B)'!$H$160","v":0},{"$f":"'TENDER PACK 1a STORAGE(Sheet B)'!$H$162","v":0},{"$f":"'TENDER PACK 1a STORAGE(Sheet B)'!$D$181","v":1},{"$f":"'TENDER PACK 1a STORAGE(Sheet B)'!$F$181","v":0},{"$f":"'TENDER PACK 1a STORAGE(Sheet B)'!$J$181","v":0},{"$f":"'TENDER PACK 1a STORAGE(Sheet B)'!$L$181","v":0},{"$f":"'TENDER PACK 1a STORAGE(Sheet B)'!$P$181","v":0},null,{"$f":"'TENDER PACK 1a STORAGE(Sheet B)'!$H$216","v":0}]
[null,null,null,"..",{"$f":"'TENDER PACK 1a STORAGE(Sheet B)'!$H$88","v":0},{"$f":"'TENDER PACK 1a STORAGE(Sheet B)'!$H$90","v":0},{"$f":"'TENDER PACK 1a STORAGE(Sheet B)'!$H$91","v":0},{"$f":"'TENDER PACK 1a STORAGE(Sheet B)'!$H$94","v":0},{"$f":"'TENDER PACK 1a STORAGE(Sheet B)'!$H$95","v":0},{"$f":"'TENDER PACK 1a STORAGE(Sheet B)'!$H$96","v":0},{"$f":"'TENDER PACK 1a STORAGE(Sheet B)'!$H$97","v":0},{"$f":"'TENDER PACK 1a STORAGE(Sheet B)'!$H$98","v":0},{"$f":"'TENDER PACK 1a STORAGE(Sheet B)'!$H$100","v":0},{"$f":"'TENDER PACK 1a STORAGE(Sheet B)'!$H$101","v":0},{"$f":"IF('TENDER PACK 1a STORAGE(Sheet B)'!$S$102=2,\"Parent Company Guarantee\",IF('TENDER PACK 1a STORAGE(Sheet B)'!$S$102=3,\"Letter of Credit\",IF('TENDER PACK 1a STORAGE(Sheet B)'!$S$102=4,\"Deposit Deed\",IF('TENDER PACK 1a STORAGE(Sheet B)'!$S$102=1,\"Meets Requirements\",\"UNCHECKED\"))))","v":"Deposit Deed"},"No",{"$f":"'TENDER PACK 1a STORAGE(Sheet B)'!$H$112","v":0},{"$f":"'TENDER PACK 1a STORAGE(Sheet B)'!$H$114","v":0},{"$f":"IF('TENDER PACK 1a STORAGE(Sheet A)'!$S$121=1,\"STORAGE OPERATOR\",IF('TENDER PACK 1a STORAGE(Sheet A)'!$S$121=2,\"Primary Capacity Holder of Storage\",\"UNCHECKED\"))","v":"STORAGE OPERATOR"},{"$f":"'TENDER PACK 1a STORAGE(Sheet B)'!$H$120","v":0},{"$f":"'TENDER PACK 1a STORAGE(Sheet B)'!$H$183","v":0},{"$f":"'TENDER PACK 1a STORAGE(Sheet B)'!$H$139","v":0},{"$f":"'TENDER PACK 1a STORAGE(Sheet B)'!$H$141","v":0},{"$f":"'TENDER PACK 1a STORAGE(Sheet B)'!$H$143","v":0},{"$f":"'TENDER PACK 1a STORAGE(Sheet B)'!$H$147","v":0},{"$f":"'TENDER PACK 1a STORAGE(Sheet B)'!$H$149","v":0},{"$f":"'TENDER PACK 1a STORAGE(Sheet B)'!$H$156","v":0},{"$f":"'TENDER PACK 1a STORAGE(Sheet B)'!$H$158","v":0},{"$f":"'TENDER PACK 1a STORAGE(Sheet B)'!$H$160","v":0},{"$f":"'TENDER PACK 1a STORAGE(Sheet B)'!$H$162","v":0},{"$f":"'TENDER PACK 1a STORAGE(Sheet B)'!$D$183","v":2},{"$f":"'TENDER PACK 1a STORAGE(Sheet B)'!$F$183","v":0},{"$f":"'TENDER PACK 1a STORAGE(Sheet B)'!$J$183","v":0},{"$f":"'TENDER PACK 1a STORAGE(Sheet B)'!$L$183","v":0},{"$f":"'TENDER PACK 1a STORAGE(Sheet B)'!$P$183","v":0},null,{"$f":"'TENDER PACK 1a STORAGE(Sheet B)'!$H$216","v":0}]
[null,null,null,"..",{"$f":"'TENDER PACK 1a STORAGE(Sheet B)'!$H$88","v":0},{"$f":"'TENDER PACK 1a STORAGE(Sheet B)'!$H$90","v":0},{"$f":"'TENDER PACK 1a STORAGE(Sheet B)'!$H$91","v":0},{"$f":"'TENDER PACK 1a STORAGE(Sheet B)'!$H$94","v":0},{"$f":"'TENDER PACK 1a STORAGE(Sheet B)'!$H$95","v":0},{"$f":"'TENDER PACK 1a STORAGE(Sheet B)'!$H$96","v":0},{"$f":"'TENDER PACK 1a STORAGE(Sheet B)'!$H$97","v":0},{"$f":"'TENDER PACK 1a STORAGE(Sheet B)'!$H$98","v":0},{"$f":"'TENDER PACK 1a STORAGE(Sheet B)'!$H$100","v":0},{"$f":"'TENDER PACK 1a STORAGE(Sheet B)'!$H$101","v":0},{"$f":"IF('TENDER PACK 1a STORAGE(Sheet B)'!$S$102=2,\"Parent Company Guarantee\",IF('TENDER PACK 1a STORAGE(Sheet B)'!$S$102=3,\"Letter of Credit\",IF('TENDER PACK 1a STORAGE(Sheet B)'!$S$102=4,\"Deposit Deed\",IF('TENDER PACK 1a STORAGE(Sheet B)'!$S$102=1,\"Meets Requirements\",\"UNCHECKED\"))))","v":"Deposit Deed"},"No",{"$f":"'TENDER PACK 1a STORAGE(Sheet B)'!$H$112","v":0},{"$f":"'TENDER PACK 1a STORAGE(Sheet B)'!$H$114","v":0},{"$f":"IF('TENDER PACK 1a STORAGE(Sheet A)'!$S$121=1,\"STORAGE OPERATOR\",IF('TENDER PACK 1a STORAGE(Sheet A)'!$S$121=2,\"Primary Capacity Holder of Storage\",\"UNCHECKED\"))","v":"STORAGE OPERATOR"},{"$f":"'TENDER PACK 1a STORAGE(Sheet B)'!$H$120","v":0},{"$f":"'TENDER PACK 1a STORAGE(Sheet B)'!$H$185","v":0},{"$f":"'TENDER PACK 1a STORAGE(Sheet B)'!$H$139","v":0},{"$f":"'TENDER PACK 1a STORAGE(Sheet B)'!$H$141","v":0},{"$f":"'TENDER PACK 1a STORAGE(Sheet B)'!$H$143","v":0},{"$f":"'TENDER PACK 1a STORAGE(Sheet B)'!$H$147","v":0},{"$f":"'TENDER PACK 1a STORAGE(Sheet B)'!$H$149","v":0},{"$f":"'TENDER PACK 1a STORAGE(Sheet B)'!$H$156","v":0},{"$f":"'TENDER PACK 1a STORAGE(Sheet B)'!$H$158","v":0},{"$f":"'TENDER PACK 1a STORAGE(Sheet B)'!$H$160","v":0},{"$f":"'TENDER PACK 1a STORAGE(Sheet B)'!$H$162","v":0},{"$f":"'TENDER PACK 1a STORAGE(Sheet B)'!$D$185","v":3},{"$f":"'TENDER PACK 1a STORAGE(Sheet B)'!$F$185","v":0},{"$f":"'TENDER PACK 1a STORAGE(Sheet B)'!$J$185","v":0},{"$f":"'TENDER PACK 1a STORAGE(Sheet B)'!$L$185","v":0},{"$f":"'TENDER PACK 1a STORAGE(Sheet B)'!$P$185","v":0},null,{"$f":"'TENDER PACK 1a STORAGE(Sheet B)'!$H$216","v":0}]
[null,null,null,"..",{"$f":"'TENDER PACK 1a STORAGE(Sheet B)'!$H$88","v":0},{"$f":"'TENDER PACK 1a STORAGE(Sheet B)'!$H$90","v":0},{"$f":"'TENDER PACK 1a STORAGE(Sheet B)'!$H$91","v":0},{"$f":"'TENDER PACK 1a STORAGE(Sheet B)'!$H$94","v":0},{"$f":"'TENDER PACK 1a STORAGE(Sheet B)'!$H$95","v":0},{"$f":"'TENDER PACK 1a STORAGE(Sheet B)'!$H$96","v":0},{"$f":"'TENDER PACK 1a STORAGE(Sheet B)'!$H$97","v":0},{"$f":"'TENDER PACK 1a STORAGE(Sheet B)'!$H$98","v":0},{"$f":"'TENDER PACK 1a STORAGE(Sheet B)'!$H$100","v":0},{"$f":"'TENDER PACK 1a STORAGE(Sheet B)'!$H$101","v":0},{"$f":"IF('TENDER PACK 1a STORAGE(Sheet B)'!$S$102=2,\"Parent Company Guarantee\",IF('TENDER PACK 1a STORAGE(Sheet B)'!$S$102=3,\"Letter of Credit\",IF('TENDER PACK 1a STORAGE(Sheet B)'!$S$102=4,\"Deposit Deed\",IF('TENDER PACK 1a STORAGE(Sheet B)'!$S$102=1,\"Meets Requirements\",\"UNCHECKED\"))))","v":"Deposit Deed"},"No",{"$f":"'TENDER PACK 1a STORAGE(Sheet B)'!$H$112","v":0},{"$f":"'TENDER PACK 1a STORAGE(Sheet B)'!$H$114","v":0},{"$f":"IF('TENDER PACK 1a STORAGE(Sheet A)'!$S$121=1,\"STORAGE OPERATOR\",IF('TENDER PACK 1a STORAGE(Sheet A)'!$S$121=2,\"Primary Capacity Holder of Storage\",\"UNCHECKED\"))","v":"STORAGE OPERATOR"},{"$f":"'TENDER PACK 1a STORAGE(Sheet B)'!$H$120","v":0},{"$f":"'TENDER PACK 1a STORAGE(Sheet B)'!$H$187","v":0},{"$f":"'TENDER PACK 1a STORAGE(Sheet B)'!$H$139","v":0},{"$f":"'TENDER PACK 1a STORAGE(Sheet B)'!$H$141","v":0},{"$f":"'TENDER PACK 1a STORAGE(Sheet B)'!$H$143","v":0},{"$f":"'TENDER PACK 1a STORAGE(Sheet B)'!$H$147","v":0},{"$f":"'TENDER PACK 1a STORAGE(Sheet B)'!$H$149","v":0},{"$f":"'TENDER PACK 1a STORAGE(Sheet B)'!$H$156","v":0},{"$f":"'TENDER PACK 1a STORAGE(Sheet B)'!$H$158","v":0},{"$f":"'TENDER PACK 1a STORAGE(Sheet B)'!$H$160","v":0},{"$f":"'TENDER PACK 1a STORAGE(Sheet B)'!$H$162","v":0},{"$f":"'TENDER PACK 1a STORAGE(Sheet B)'!$D$187","v":4},{"$f":"'TENDER PACK 1a STORAGE(Sheet B)'!$F$187","v":0},{"$f":"'TENDER PACK 1a STORAGE(Sheet B)'!$J$187","v":0},{"$f":"'TENDER PACK 1a STORAGE(Sheet B)'!$L$187","v":0},{"$f":"'TENDER PACK 1a STORAGE(Sheet B)'!$P$187","v":0},null,{"$f":"'TENDER PACK 1a STORAGE(Sheet B)'!$H$216","v":0}]
[null,null,null,"..",{"$f":"'TENDER PACK 1a STORAGE(Sheet B)'!$H$88","v":0},{"$f":"'TENDER PACK 1a STORAGE(Sheet B)'!$H$90","v":0},{"$f":"'TENDER PACK 1a STORAGE(Sheet B)'!$H$91","v":0},{"$f":"'TENDER PACK 1a STORAGE(Sheet B)'!$H$94","v":0},{"$f":"'TENDER PACK 1a STORAGE(Sheet B)'!$H$95","v":0},{"$f":"'TENDER PACK 1a STORAGE(Sheet B)'!$H$96","v":0},{"$f":"'TENDER PACK 1a STORAGE(Sheet B)'!$H$97","v":0},{"$f":"'TENDER PACK 1a STORAGE(Sheet B)'!$H$98","v":0},{"$f":"'TENDER PACK 1a STORAGE(Sheet B)'!$H$100","v":0},{"$f":"'TENDER PACK 1a STORAGE(Sheet B)'!$H$101","v":0},{"$f":"IF('TENDER PACK 1a STORAGE(Sheet B)'!$S$102=2,\"Parent Company Guarantee\",IF('TENDER PACK 1a STORAGE(Sheet B)'!$S$102=3,\"Letter of Credit\",IF('TENDER PACK 1a STORAGE(Sheet B)'!$S$102=4,\"Deposit Deed\",IF('TENDER PACK 1a STORAGE(Sheet B)'!$S$102=1,\"Meets Requirements\",\"UNCHECKED\"))))","v":"Deposit Deed"},"No",{"$f":"'TENDER PACK 1a STORAGE(Sheet B)'!$H$112","v":0},{"$f":"'TENDER PACK 1a STORAGE(Sheet B)'!$H$114","v":0},{"$f":"IF('TENDER PACK 1a STORAGE(Sheet A)'!$S$121=1,\"STORAGE OPERATOR\",IF('TENDER PACK 1a STORAGE(Sheet A)'!$S$121=2,\"Primary Capacity Holder of Storage\",\"UNCHECKED\"))","v":"STORAGE OPERATOR"},{"$f":"'TENDER PACK 1a STORAGE(Sheet B)'!$H$120","v":0},{"$f":"'TENDER PACK 1a STORAGE(Sheet B)'!$H$189","v":0},{"$f":"'TENDER PACK 1a STORAGE(Sheet B)'!$H$139","v":0},{"$f":"'TENDER PACK 1a STORAGE(Sheet B)'!$H$141","v":0},{"$f":"'TENDER PACK 1a STORAGE(Sheet B)'!$H$143","v":0},{"$f":"'TENDER PACK 1a STORAGE(Sheet B)'!$H$147","v":0},{"$f":"'TENDER PACK 1a STORAGE(Sheet B)'!$H$149","v":0},{"$f":"'TENDER PACK 1a STORAGE(Sheet B)'!$H$156","v":0},{"$f":"'TENDER PACK 1a STORAGE(Sheet B)'!$H$158","v":0},{"$f":"'TENDER PACK 1a STORAGE(Sheet B)'!$H$160","v":0},{"$f":"'TENDER PACK 1a STORAGE(Sheet B)'!$H$162","v":0},{"$f":"'TENDER PACK 1a STORAGE(Sheet B)'!$D$189","v":5},{"$f":"'TENDER PACK 1a STORAGE(Sheet B)'!$F$189","v":0},{"$f":"'TENDER PACK 1a STORAGE(Sheet B)'!$J$189","v":0},{"$f":"'TENDER PACK 1a STORAGE(Sheet B)'!$L$189","v":0},{"$f":"'TENDER PACK 1a STORAGE(Sheet B)'!$P$189","v":0},null,{"$f":"'TENDER PACK 1a STORAGE(Sheet B)'!$H$216","v":0}]
[null,null,null,"..",{"$f":"'TENDER PACK 1a STORAGE(Sheet B)'!$H$88","v":0},{"$f":"'TENDER PACK 1a STORAGE(Sheet B)'!$H$90","v":0},{"$f":"'TENDER PACK 1a STORAGE(Sheet B)'!$H$91","v":0},{"$f":"'TENDER PACK 1a STORAGE(Sheet B)'!$H$94","v":0},{"$f":"'TENDER PACK 1a STORAGE(Sheet B)'!$H$95","v":0},{"$f":"'TENDER PACK 1a STORAGE(Sheet B)'!$H$96","v":0},{"$f":"'TENDER PACK 1a STORAGE(Sheet B)'!$H$97","v":0},{"$f":"'TENDER PACK 1a STORAGE(Sheet B)'!$H$98","v":0},{"$f":"'TENDER PACK 1a STORAGE(Sheet B)'!$H$100","v":0},{"$f":"'TENDER PACK 1a STORAGE(Sheet B)'!$H$101","v":0},{"$f":"IF('TENDER PACK 1a STORAGE(Sheet B)'!$S$102=2,\"Parent Company Guarantee\",IF('TENDER PACK 1a STORAGE(Sheet B)'!$S$102=3,\"Letter of Credit\",IF('TENDER PACK 1a STORAGE(Sheet B)'!$S$102=4,\"Deposit Deed\",IF('TENDER PACK 1a STORAGE(Sheet B)'!$S$102=1,\"Meets Requirements\",\"UNCHECKED\"))))","v":"Deposit Deed"},"No",{"$f":"'TENDER PACK 1a STORAGE(Sheet B)'!$H$112","v":0},{"$f":"'TENDER PACK 1a STORAGE(Sheet B)'!$H$114","v":0},{"$f":"IF('TENDER PACK 1a STORAGE(Sheet A)'!$S$121=1,\"STORAGE OPERATOR\",IF('TENDER PACK 1a STORAGE(Sheet A)'!$S$121=2,\"Primary Capacity Holder of Storage\",\"UNCHECKED\"))","v":"STORAGE OPERATOR"},{"$f":"'TENDER PACK 1a STORAGE(Sheet B)'!$H$120","v":0},{"$f":"'TENDER PACK 1a STORAGE(Sheet B)'!$H$191","v":0},{"$f":"'TENDER PACK 1a STORAGE(Sheet B)'!$H$139","v":0},{"$f":"'TENDER PACK 1a STORAGE(Sheet B)'!$H$141","v":0},{"$f":"'TENDER PACK 1a STORAGE(Sheet B)'!$H$143","v":0},{"$f":"'TENDER PACK 1a STORAGE(Sheet B)'!$H$147","v":0},{"$f":"'TENDER PACK 1a STORAGE(Sheet B)'!$H$149","v":0},{"$f":"'TENDER PACK 1a STORAGE(Sheet B)'!$H$156","v":0},{"$f":"'TENDER PACK 1a STORAGE(Sheet B)'!$H$158","v":0},{"$f":"'TENDER PACK 1a STORAGE(Sheet B)'!$H$160","v":0},{"$f":"'TENDER PACK 1a STORAGE(Sheet B)'!$H$162","v":0},{"$f":"'TENDER PACK 1a STORAGE(Sheet B)'!$D$191","v":6},{"$f":"'TENDER PACK 1a STORAGE(Sheet B)'!$F$191","v":0},{"$f":"'TENDER PACK 1a STORAGE(Sheet B)'!$J$191","v":0},{"$f":"'TENDER PACK 1a STORAGE(Sheet B)'!$L$191","v":0},{"$f":"'TENDER PACK 1a STORAGE(Sheet B)'!$P$191","v":0},null,{"$f":"'TENDER PACK 1a STORAGE(Sheet B)'!$H$216","v":0}]
[null,null,null,"..",{"$f":"'TENDER PACK 1a STORAGE(Sheet B)'!$H$88","v":0},{"$f":"'TENDER PACK 1a STORAGE(Sheet B)'!$H$90","v":0},{"$f":"'TENDER PACK 1a STORAGE(Sheet B)'!$H$91","v":0},{"$f":"'TENDER PACK 1a STORAGE(Sheet B)'!$H$94","v":0},{"$f":"'TENDER PACK 1a STORAGE(Sheet B)'!$H$95","v":0},{"$f":"'TENDER PACK 1a STORAGE(Sheet B)'!$H$96","v":0},{"$f":"'TENDER PACK 1a STORAGE(Sheet B)'!$H$97","v":0},{"$f":"'TENDER PACK 1a STORAGE(Sheet B)'!$H$98","v":0},{"$f":"'TENDER PACK 1a STORAGE(Sheet B)'!$H$100","v":0},{"$f":"'TENDER PACK 1a STORAGE(Sheet B)'!$H$101","v":0},{"$f":"IF('TENDER PACK 1a STORAGE(Sheet B)'!$S$102=2,\"Parent Company Guarantee\",IF('TENDER PACK 1a STORAGE(Sheet B)'!$S$102=3,\"Letter of Credit\",IF('TENDER PACK 1a STORAGE(Sheet B)'!$S$102=4,\"Deposit Deed\",IF('TENDER PACK 1a STORAGE(Sheet B)'!$S$102=1,\"Meets Requirements\",\"UNCHECKED\"))))","v":"Deposit Deed"},"No",{"$f":"'TENDER PACK 1a STORAGE(Sheet B)'!$H$112","v":0},{"$f":"'TENDER PACK 1a STORAGE(Sheet B)'!$H$114","v":0},{"$f":"IF('TENDER PACK 1a STORAGE(Sheet A)'!$S$121=1,\"STORAGE OPERATOR\",IF('TENDER PACK 1a STORAGE(Sheet A)'!$S$121=2,\"Primary Capacity Holder of Storage\",\"UNCHECKED\"))","v":"STORAGE OPERATOR"},{"$f":"'TENDER PACK 1a STORAGE(Sheet B)'!$H$120","v":0},{"$f":"'TENDER PACK 1a STORAGE(Sheet B)'!$H$193","v":0},{"$f":"'TENDER PACK 1a STORAGE(Sheet B)'!$H$139","v":0},{"$f":"'TENDER PACK 1a STORAGE(Sheet B)'!$H$141","v":0},{"$f":"'TENDER PACK 1a STORAGE(Sheet B)'!$H$143","v":0},{"$f":"'TENDER PACK 1a STORAGE(Sheet B)'!$H$147","v":0},{"$f":"'TENDER PACK 1a STORAGE(Sheet B)'!$H$149","v":0},{"$f":"'TENDER PACK 1a STORAGE(Sheet B)'!$H$156","v":0},{"$f":"'TENDER PACK 1a STORAGE(Sheet B)'!$H$158","v":0},{"$f":"'TENDER PACK 1a STORAGE(Sheet B)'!$H$160","v":0},{"$f":"'TENDER PACK 1a STORAGE(Sheet B)'!$H$162","v":0},{"$f":"'TENDER PACK 1a STORAGE(Sheet B)'!$D$193","v":7},{"$f":"'TENDER PACK 1a STORAGE(Sheet B)'!$F$193","v":0},{"$f":"'TENDER PACK 1a STORAGE(Sheet B)'!$J$193","v":0},{"$f":"'TENDER PACK 1a STORAGE(Sheet B)'!$L$193","v":0},{"$f":"'TENDER PACK 1a STORAGE(Sheet B)'!$P$193","v":0},null,{"$f":"'TENDER PACK 1a STORAGE(Sheet B)'!$H$216","v":0}]
[null,null,null,"..",{"$f":"'TENDER PACK 1a STORAGE(Sheet B)'!$H$88","v":0},{"$f":"'TENDER PACK 1a STORAGE(Sheet B)'!$H$90","v":0},{"$f":"'TENDER PACK 1a STORAGE(Sheet B)'!$H$91","v":0},{"$f":"'TENDER PACK 1a STORAGE(Sheet B)'!$H$94","v":0},{"$f":"'TENDER PACK 1a STORAGE(Sheet B)'!$H$95","v":0},{"$f":"'TENDER PACK 1a STORAGE(Sheet B)'!$H$96","v":0},{"$f":"'TENDER PACK 1a STORAGE(Sheet B)'!$H$97","v":0},{"$f":"'TENDER PACK 1a STORAGE(Sheet B)'!$H$98","v":0},{"$f":"'TENDER PACK 1a STORAGE(Sheet B)'!$H$100","v":0},{"$f":"'TENDER PACK 1a STORAGE(Sheet B)'!$H$101","v":0},{"$f":"IF('TENDER PACK 1a STORAGE(Sheet B)'!$S$102=2,\"Parent Company Guarantee\",IF('TENDER PACK 1a STORAGE(Sheet B)'!$S$102=3,\"Letter of Credit\",IF('TENDER PACK 1a STORAGE(Sheet B)'!$S$102=4,\"Deposit Deed\",IF('TENDER PACK 1a STORAGE(Sheet B)'!$S$102=1,\"Meets Requirements\",\"UNCHECKED\"))))","v":"Deposit Deed"},"No",{"$f":"'TENDER PACK 1a STORAGE(Sheet B)'!$H$112","v":0},{"$f":"'TENDER PACK 1a STORAGE(Sheet B)'!$H$114","v":0},{"$f":"IF('TENDER PACK 1a STORAGE(Sheet A)'!$S$121=1,\"STORAGE OPERATOR\",IF('TENDER PACK 1a STORAGE(Sheet A)'!$S$121=2,\"Primary Capacity Holder of Storage\",\"UNCHECKED\"))","v":"STORAGE OPERATOR"},{"$f":"'TENDER PACK 1a STORAGE(Sheet B)'!$H$120","v":0},{"$f":"'TENDER PACK 1a STORAGE(Sheet B)'!$H$195","v":0},{"$f":"'TENDER PACK 1a STORAGE(Sheet B)'!$H$139","v":0},{"$f":"'TENDER PACK 1a STORAGE(Sheet B)'!$H$141","v":0},{"$f":"'TENDER PACK 1a STORAGE(Sheet B)'!$H$143","v":0},{"$f":"'TENDER PACK 1a STORAGE(Sheet B)'!$H$147","v":0},{"$f":"'TENDER PACK 1a STORAGE(Sheet B)'!$H$149","v":0},{"$f":"'TENDER PACK 1a STORAGE(Sheet B)'!$H$156","v":0},{"$f":"'TENDER PACK 1a STORAGE(Sheet B)'!$H$158","v":0},{"$f":"'TENDER PACK 1a STORAGE(Sheet B)'!$H$160","v":0},{"$f":"'TENDER PACK 1a STORAGE(Sheet B)'!$H$162","v":0},{"$f":"'TENDER PACK 1a STORAGE(Sheet B)'!$D$195","v":8},{"$f":"'TENDER PACK 1a STORAGE(Sheet B)'!$F$195","v":0},{"$f":"'TENDER PACK 1a STORAGE(Sheet B)'!$J$195","v":0},{"$f":"'TENDER PACK 1a STORAGE(Sheet B)'!$L$195","v":0},{"$f":"'TENDER PACK 1a STORAGE(Sheet B)'!$P$195","v":0},null,{"$f":"'TENDER PACK 1a STORAGE(Sheet B)'!$H$216","v":0}]
[null,null,null,"..",{"$f":"'TENDER PACK 1a STORAGE(Sheet B)'!$H$88","v":0},{"$f":"'TENDER PACK 1a STORAGE(Sheet B)'!$H$90","v":0},{"$f":"'TENDER PACK 1a STORAGE(Sheet B)'!$H$91","v":0},{"$f":"'TENDER PACK 1a STORAGE(Sheet B)'!$H$94","v":0},{"$f":"'TENDER PACK 1a STORAGE(Sheet B)'!$H$95","v":0},{"$f":"'TENDER PACK 1a STORAGE(Sheet B)'!$H$96","v":0},{"$f":"'TENDER PACK 1a STORAGE(Sheet B)'!$H$97","v":0},{"$f":"'TENDER PACK 1a STORAGE(Sheet B)'!$H$98","v":0},{"$f":"'TENDER PACK 1a STORAGE(Sheet B)'!$H$100","v":0},{"$f":"'TENDER PACK 1a STORAGE(Sheet B)'!$H$101","v":0},{"$f":"IF('TENDER PACK 1a STORAGE(Sheet B)'!$S$102=2,\"Parent Company Guarantee\",IF('TENDER PACK 1a STORAGE(Sheet B)'!$S$102=3,\"Letter of Credit\",IF('TENDER PACK 1a STORAGE(Sheet B)'!$S$102=4,\"Deposit Deed\",IF('TENDER PACK 1a STORAGE(Sheet B)'!$S$102=1,\"Meets Requirements\",\"UNCHECKED\"))))","v":"Deposit Deed"},"No",{"$f":"'TENDER PACK 1a STORAGE(Sheet B)'!$H$112","v":0},{"$f":"'TENDER PACK 1a STORAGE(Sheet B)'!$H$114","v":0},{"$f":"IF('TENDER PACK 1a STORAGE(Sheet A)'!$S$121=1,\"STORAGE OPERATOR\",IF('TENDER PACK 1a STORAGE(Sheet A)'!$S$121=2,\"Primary Capacity Holder of Storage\",\"UNCHECKED\"))","v":"STORAGE OPERATOR"},{"$f":"'TENDER PACK 1a STORAGE(Sheet B)'!$H$120","v":0},{"$f":"'TENDER PACK 1a STORAGE(Sheet B)'!$H$197","v":0},{"$f":"'TENDER PACK 1a STORAGE(Sheet B)'!$H$139","v":0},{"$f":"'TENDER PACK 1a STORAGE(Sheet B)'!$H$141","v":0},{"$f":"'TENDER PACK 1a STORAGE(Sheet B)'!$H$143","v":0},{"$f":"'TENDER PACK 1a STORAGE(Sheet B)'!$H$147","v":0},{"$f":"'TENDER PACK 1a STORAGE(Sheet B)'!$H$149","v":0},{"$f":"'TENDER PACK 1a STORAGE(Sheet B)'!$H$156","v":0},{"$f":"'TENDER PACK 1a STORAGE(Sheet B)'!$H$158","v":0},{"$f":"'TENDER PACK 1a STORAGE(Sheet B)'!$H$160","v":0},{"$f":"'TENDER PACK 1a STORAGE(Sheet B)'!$H$162","v":0},{"$f":"'TENDER PACK 1a STORAGE(Sheet B)'!$D$197","v":9},{"$f":"'TENDER PACK 1a STORAGE(Sheet B)'!$F$197","v":0},{"$f":"'TENDER PACK 1a STORAGE(Sheet B)'!$J$197","v":0},{"$f":"'TENDER PACK 1a STORAGE(Sheet B)'!$L$197","v":0},{"$f":"'TENDER PACK 1a STORAGE(Sheet B)'!$P$197","v":0},null,{"$f":"'TENDER PACK 1a STORAGE(Sheet B)'!$H$216","v":0}]
[null,null,null,"..",{"$f":"'TENDER PACK 1a STORAGE(Sheet B)'!$H$88","v":0},{"$f":"'TENDER PACK 1a STORAGE(Sheet B)'!$H$90","v":0},{"$f":"'TENDER PACK 1a STORAGE(Sheet B)'!$H$91","v":0},{"$f":"'TENDER PACK 1a STORAGE(Sheet B)'!$H$94","v":0},{"$f":"'TENDER PACK 1a STORAGE(Sheet B)'!$H$95","v":0},{"$f":"'TENDER PACK 1a STORAGE(Sheet B)'!$H$96","v":0},{"$f":"'TENDER PACK 1a STORAGE(Sheet B)'!$H$97","v":0},{"$f":"'TENDER PACK 1a STORAGE(Sheet B)'!$H$98","v":0},{"$f":"'TENDER PACK 1a STORAGE(Sheet B)'!$H$100","v":0},{"$f":"'TENDER PACK 1a STORAGE(Sheet B)'!$H$101","v":0},{"$f":"IF('TENDER PACK 1a STORAGE(Sheet B)'!$S$102=2,\"Parent Company Guarantee\",IF('TENDER PACK 1a STORAGE(Sheet B)'!$S$102=3,\"Letter of Credit\",IF('TENDER PACK 1a STORAGE(Sheet B)'!$S$102=4,\"Deposit Deed\",IF('TENDER PACK 1a STORAGE(Sheet B)'!$S$102=1,\"Meets Requirements\",\"UNCHECKED\"))))","v":"Deposit Deed"},"No",{"$f":"'TENDER PACK 1a STORAGE(Sheet B)'!$H$112","v":0},{"$f":"'TENDER PACK 1a STORAGE(Sheet B)'!$H$114","v":0},{"$f":"IF('TENDER PACK 1a STORAGE(Sheet A)'!$S$121=1,\"STORAGE OPERATOR\",IF('TENDER PACK 1a STORAGE(Sheet A)'!$S$121=2,\"Primary Capacity Holder of Storage\",\"UNCHECKED\"))","v":"STORAGE OPERATOR"},{"$f":"'TENDER PACK 1a STORAGE(Sheet B)'!$H$120","v":0},{"$f":"'TENDER PACK 1a STORAGE(Sheet B)'!$H$199","v":0},{"$f":"'TENDER PACK 1a STORAGE(Sheet B)'!$H$139","v":0},{"$f":"'TENDER PACK 1a STORAGE(Sheet B)'!$H$141","v":0},{"$f":"'TENDER PACK 1a STORAGE(Sheet B)'!$H$143","v":0},{"$f":"'TENDER PACK 1a STORAGE(Sheet B)'!$H$147","v":0},{"$f":"'TENDER PACK 1a STORAGE(Sheet B)'!$H$149","v":0},{"$f":"'TENDER PACK 1a STORAGE(Sheet B)'!$H$156","v":0},{"$f":"'TENDER PACK 1a STORAGE(Sheet B)'!$H$158","v":0},{"$f":"'TENDER PACK 1a STORAGE(Sheet B)'!$H$160","v":0},{"$f":"'TENDER PACK 1a STORAGE(Sheet B)'!$H$162","v":0},{"$f":"'TENDER PACK 1a STORAGE(Sheet B)'!$D$199","v":10},{"$f":"'TENDER PACK 1a STORAGE(Sheet B)'!$F$199","v":0},{"$f":"'TENDER PACK 1a STORAGE(Sheet B)'!$J$199","v":0},{"$f":"'TENDER PACK 1a STORAGE(Sheet B)'!$L$199","v":0},{"$f":"'TENDER PACK 1a STORAGE(Sheet B)'!$P$199","v":0},null,{"$f":"'TENDER PACK 1a STORAGE(Sheet B)'!$H$216","v":0}]